Cogmind - Beta 10.2 @@@ ROGUE MODE // 2021.12.02 @ 15:06:52 Player: Phaethon Result: Destroyed by Enhanced Hunter with Hypervelocity Linear Accelerator Performance ------------- Evolutions (9) 4500 Regions Visited (34) 6800 Robots Destroyed (151) 755 Value Destroyed (6158) 6158 Prototype IDs (268) 5360 Alien Tech Used (7) 1400 Bonus (33993) 33993 TOTAL SCORE: 58966 Bonus ------- High Alert Combat Kills 504 Follower Combat Kills 1299 Aligned with FarCom 300 Met Data Miner 300 Used Data Conduit 3000 Destroyed Z-Imprinter 1000 Met Zhirov 300 Met Warlord at Base 500 MAIN.C Attacked Warlord 500 Found Hidden Lab 3000 Decrypted A0 Command 3000 Scanned by Researcher 500 Pursued by Intercept 2000 Acquired SGEMP 2000 Delivered SGEMP 2000 Destroyed MAIN.C Guards 500 Met MAIN.C 5000 Destroyed MAIN.C Shell 5000 Zhirov Destroyed MAIN.C 3000 Met Warlord at Command 2000 Met Architect 300 Destroyed A8 300 Friendly Fire -2310 Cogmind --------- Core Integrity 0/1600 Matter 215/300 Energy 170/170 System Corruption 0% Temperature Cool (0) Movement Core (50) Location -1/Access_0 Parts ------- > --- POWER (4) -------- Micro Fission Core > --- PROPULSION (7) --- (None) > --- UTILITY (11) ----- Spectral Analyzer > --- WEAPON (4) ------- (None) > --- INVENTORY (6) ---- Zionite Biocell (1000) Precision Matter Filter Linked Autogun Enhanced Force Lance Peak State ------------ > --- POWER ------------ Micro Fission Core Micro Fission Core Vortex Chain Reactor > --- PROPULSION ------- Enhanced Armored Heavy Treads Enhanced Flexi-carbon Leg High-density Centrium Leg High-density Centrium Leg Experimental Biometal Leg Experimental Biometal Leg > --- UTILITY ---------- Advanced Heat Sink Advanced Heat Sink Large Storage Unit Spectral Analyzer Improved Targeting Computer Advanced Particle Charger Advanced Reaction Control System Experimental Phase Shifter Medium Regenerative Plating Medium Regenerative Plating AEGIS Remote Shield > --- WEAPON ----------- Heavy Quantum Rifle Enhanced Nova Cannon Improved Potential Cannon > --- INVENTORY -------- Micro Fission Core Zionite Biocell Precision Matter Filter Experimental Phase Shifter Layered Medium Armor Plating Improved Potential Cannon Linked Autogun Enhanced Force Lance [Rating: 227] Favorites ----------- Power Micro Fission Core Engine Ion Engine Power Core Micro Fission Core Reactor Zionite Light DM Reactor Propulsion Carbon-fiber Leg Treads Light Treads Leg Carbon-fiber Leg Hover Unit Zionite Glidesys I Flight Unit Improved Q-thruster Utility Large Storage Unit Device Sensor Drone Bay Storage Large Storage Unit Processor Improved Targeting Computer Hackware Deep Network Scanner Protection Medium Regenerative Plating Weapon Heavy Pick Energy Gun Heavy EM Shotgun Energy Cannon Improved Potential Cannon Ballistic Gun Assault Rifle Ballistic Cannon Omega Cannon Launcher Rocket Launcher Special Weapon Plasma Cutter Impact Weapon Great Maul Slashing Weapon Makeshift Axe Piercing Weapon Heavy Pick Special Melee Weapon Advanced Datajack Build | -11 -10 -10 -10 -9 -8 -7 -7 -7 -7 -7 -6 -6 -6 -6 -5 -5 -5 -5 -5 -4 -4 -4 -4 -4 -3 -3 -3 -3 -2 -2 -2 -1 -1 -1 ------- Run | Scr Mat Min Exi Min Mat Fac Low Low Zio Dee Pro Fac Low Dat Pro Fac Upp Upp War Pro Fac Upp Upp Zhi Pro Res Arm Lab Res Tes Sec Acc Com Ac0 Slots Evolved 16 | . . . . . 4 2 . . . . . 2 . . . 2 . . . . 2 . . . . 2 . . 2 . . . . . Power 1 | . . . . . . . . . . . . . . . . . . . . . 1 . . . . . . . . . . . . . Propulsion 5 | . . . . . 2 . . . . . . 1 . . . . . . . . . . . . . 1 . . 1 . . . . . Utility 8 | . . . . . . 2 . . . . . 1 . . . 2 . . . . 1 . . . . 1 . . 1 . . . . . Weapon 2 | . . . . . 2 . . . . . . . . . . . . . . . . . . . . . . . . . . . . . Parts Attached 367 | 2 9 6 3 . 23 6 5 6 13 55 7 18 . 3 6 4 1 8 8 3 6 2 . 5 . 19 5 6 31 12 11 7 65 12 Power 30 | . . 1 . . 6 . . 1 . 5 . . . . . . . . . . 2 . . . . 1 . . . . 3 . 9 2 Engine 7 | . . 1 . . 5 . . . . 1 . . . . . . . . . . . . . . . . . . . . . . . . Core 14 | . . . . . 1 . . 1 . . . . . . . . . . . . 1 . . . . . . . . . 1 . 8 2 Reactor 9 | . . . . . . . . . . 4 . . . . . . . . . . 1 . . . . 1 . . . . 2 . 1 . Propulsion 64 | 2 . . . . 7 . 1 . 5 13 1 5 . . . . . 1 1 . 2 . . 3 . 5 . . 3 2 2 . 9 2 Treads 6 | 2 . . . . 3 . . . . . . . . . . . . . . . . . . . . . . . . . . . 1 . Leg 16 | . . . . . 4 . 1 . 4 . . . . . . . . . . . . . . . . . . . . . . . 5 2 Wheel . | . . . . . . . . . . . . . . . . . . . . . . . . . . . . . . . . . . . Hover 26 | . . . . . . . . . . 12 1 4 . . . . . 1 1 . 2 . . 3 . 1 . . . . . . 1 . Flight 16 | . . . . . . . . . 1 1 . 1 . . . . . . . . . . . . . 4 . . 3 2 2 . 2 . Utility 160 | . 6 . 2 . . 3 2 . 3 23 3 9 . 3 3 4 1 7 5 3 2 1 . 1 . 8 4 1 21 5 5 5 27 3 Device 98 | . . . . . . 3 2 . . 10 3 5 . 1 3 1 1 5 4 3 1 1 . 1 . 4 1 1 16 3 4 3 20 2 Storage 25 | . 6 . 2 . . . . . 2 9 . 1 . . . . . . 1 . . . . . . 2 1 . . . . . 1 . Processor 6 | . . . . . . . . . . 1 . . . 1 . . . . . . . . . . . 1 . . 1 . . 1 1 . Hackware 7 | . . . . . . . . . . . . 2 . . . 2 . . . . 1 . . . . . . . . . . 1 1 . Protection 24 | . . . . . . . . . 1 3 . 1 . 1 . 1 . 2 . . . . . . . 1 2 . 4 2 1 . 4 1 Artifact . | . . . . . . . . . . . . . . . . . . . . . . . . . . . . . . . . . . . Weapon 113 | . 3 5 1 . 10 3 2 5 5 14 3 4 . . 3 . . . 2 . . 1 . 1 . 5 1 5 7 5 1 2 20 5 Energy Gun 35 | . 2 4 1 . 6 1 . 3 1 7 . . . . . . . . 1 . . . . . . . . 2 . . . . 4 3 Energy Cannon 17 | . . . . . . . . . . . . . . . . . . . . . . . . . . 1 1 1 . 3 . 2 7 2 Ballistic Gun 12 | . . . . . 1 . . . 1 4 1 1 . . . . . . . . . . . . . 1 . . . . . . 3 . Ballistic Cannon 1 | . . . . . . . . . . . . . . . . . . . . . . . . . . . . . . 1 . . . . Launcher 7 | . 1 1 . . 1 2 . . . 1 1 . . . . . . . . . . . . . . . . . . . . . . . Special Weapon 9 | . . . . . . . . 1 1 1 1 . . . 1 . . . . . . 1 . . . . . . 2 1 . . . . Impact Weapon 2 | . . . . . . . 1 . 1 . . . . . . . . . . . . . . . . . . . . . . . . . Slashing Weapon 10 | . . . . . 2 . 1 1 1 1 . 1 . . 1 . . . 1 . . . . . . . . . 1 . . . . . Piercing Weapon 15 | . . . . . . . . . . . . 2 . . 1 . . . . . . . . 1 . 2 . 1 2 . . . 6 . Special Melee Weapon 5 | . . . . . . . . . . . . . . . . . . . . . . . . . . 1 . 1 2 . 1 . . . Unidentified Prototypes 34 | . . . . . 5 . . . . 13 . 1 . . . 1 . . 1 . . . . 1 . 1 . 2 1 4 2 . 2 . Parts Lost 58 | . . 1 . . 4 . . 1 . 5 1 1 . . . . . 1 . 1 . . . . . . . . 6 1 3 1 6 26 Power 4 | . . . . . . . . 1 . . . . . . . . . . . . . . . . . . . . . . . . . 3 Propulsion 19 | . . . . . 2 . . . . 3 1 1 . . . . . 1 . . . . . . . . . . 2 . 1 . 2 6 Utility 22 | . . . . . . . . . . 1 . . . . . . . . . 1 . . . . . . . . 3 1 1 1 2 12 Weapon 13 | . . 1 . . 2 . . . . 1 . . . . . . . . . . . . . . . . . . 1 . 1 . 2 5 Highest Loss Streak 12 | . . 1 . . 3 . . 1 . 3 1 1 . . . . . 1 . 1 . . . . . . . . 2 1 2 1 2 12 Average Slot Usage (%) 92 | . 98 99 100 100 81 100 99 99 97 88 99 81 100 100 99 99 100 98 93 94 85 89 89 92 100 90 85 83 84 83 80 79 81 66 Engine 2 | . 14 14 14 14 8 . . . . . . . . . . . . . . . . . . . . . . . . . . . . . Core 3 | . . . . . . 7 7 6 7 1 . . . . . . . . . . 3 5 5 5 5 4 4 4 4 4 3 3 10 7 Reactor 2 | . . . . . . . . . . 5 7 6 6 6 6 5 5 5 5 5 5 5 5 5 5 4 4 4 4 4 5 7 2 2 Treads 4 | . 28 28 28 28 13 . . . . . . . . . . . . . . . . . . . . . . . . . . . . 2 Leg 7 | . . . . . 5 30 30 30 28 5 . . . . . . . . . . . . . . . . . . . . . . 3 15 Hover 9 | . . . . . . . . . . 23 29 11 33 33 33 29 29 27 23 23 21 21 21 23 26 11 . . . . . . . . Flight 2 | . . . . . . . . . . . . 4 . . . . . . . . . . . . . 7 14 14 16 16 14 15 11 . Device 11 | . . . . . . 15 15 15 11 7 15 8 13 13 20 18 17 15 16 17 11 15 15 15 15 11 11 9 13 15 17 12 14 13 Storage 15 | . 26 28 28 28 18 15 15 15 15 17 15 13 13 13 13 11 11 11 13 17 15 15 15 15 15 13 14 14 12 12 11 11 10 2 Hackware 3 | . . . . . . . . . . . . 9 . . . 7 11 11 8 5 9 10 10 10 10 9 9 9 8 8 7 10 6 . Protection 1 | . . . . . . . . . 2 2 . . 6 4 . 1 . . . . . . . . . 2 2 4 2 4 5 3 3 4 Energy Gun 7 | . 5 16 28 28 23 19 15 15 19 5 . . . . . . . . . . . . . . . . . . . . . . . 2 Ballistic Gun 2 | . 22 11 . . 2 . . . . 2 6 2 . . . . . . . . . . . . . 2 . . . . . . . . Launcher 1 | . . . . . . 3 7 7 . 2 7 1 . . . . . . . . . . . . . . . . . . . . . . Slashing Weapon 5 | . . . . . 8 7 6 6 7 4 7 10 13 13 12 11 11 11 10 11 10 10 10 10 10 4 4 4 2 . . . . . Piercing Weapon 3 | . . . . . . . . . . . . 7 13 13 12 11 11 11 11 11 6 5 5 6 10 9 11 9 7 4 3 3 3 . Naked Turns 7 | . . . . . . . . . . 7 . . . . . . . . . . . . . . . . . . . . . . . . Heaviest Build 158 | 12 42 43 73 73 83 97 97 100 100 119 90 88 72 72 75 79 74 74 73 76 75 78 78 81 81 89 88 88 99 125 144 134 158 147 Greatest Support 168 | 40 40 40 40 40 62 60 70 70 72 100 88 88 74 98 98 74 92 74 74 80 81 81 81 88 88 104 90 90 118 142 162 137 140 168 Greatest Overweight (x) 35 | . 1 1 1 1 3 1 1 1 1 35 1 . . . 1 1 . 1 . 1 . . . 1 . . . . 3 . 3 . 4 1 Average Overweight (x) . | . . . . 1 1 1 1 1 . . . . . . . . . . . . . . . . . . . . . . . . . . Largest Inventory Capacity 26 | 6 16 16 20 20 20 20 20 20 26 26 18 24 16 16 16 16 16 16 16 16 16 16 16 16 16 16 16 16 16 16 16 18 18 12 Average Capacity 17 | 6 13 16 18 20 20 20 20 20 19 20 18 17 16 16 16 16 16 16 16 16 16 16 16 16 16 16 16 16 16 16 16 17 17 11 Most Carried 26 | 5 16 16 20 20 20 20 20 20 20 26 18 18 16 16 16 16 16 16 16 16 16 16 16 16 16 16 16 16 16 16 16 18 18 12 Average Carried 17 | 4 11 15 18 20 19 19 20 19 19 20 17 17 16 14 15 15 15 15 15 15 15 16 16 15 16 15 15 15 14 15 15 14 17 8 Final Capacity 20 | 6 16 16 20 20 20 20 20 20 20 18 18 16 16 16 16 16 16 16 16 16 16 16 16 16 16 16 16 16 16 16 16 18 12 6 Final Carried 20 | 4 16 16 20 20 20 20 20 20 20 18 18 16 16 14 16 16 16 15 16 15 16 16 16 16 16 16 15 16 16 16 15 18 12 5 Class Distribution -------------------- 27% | Hauler-Mutant 18% | Hacker-Mutant 16% | Scavenger-Mutant 12% | Mutant 7% | Hacker-Sprinter 6% | Wizard-Sprinter 3% | Hauler-Skirmisher Dominant Class ---------------- Mutant | -10/Materials Mutant | -10/Mines Hauler-Mutant | -10/Exiles Hauler-Mutant | -9/Mines Hauler-Skirmisher | -8/Materials Hauler-Mutant | -7/Factory Hauler-Mutant | -7/Lower Caves Hauler-Mutant | -7/Lower Caves Hauler-Mutant | -7/Zion Scavenger-Mutant | -7/Deep Caves Scavenger-Mutant | -6/Proximity Caves Hacker-Mutant | -6/Factory Scavenger-Mutant | -6/Lower Caves Scavenger-Mutant | -6/Data Miner Scavenger-Mutant | -5/Proximity Caves Hacker-Mutant | -5/Factory Hacker-Mutant | -5/Upper Caves Hacker-Mutant | -5/Upper Caves Hacker-Mutant | -5/Warlord Hacker-Mutant | -4/Proximity Caves Hacker-Mutant | -4/Factory Hacker-Mutant | -4/Upper Caves Hacker-Mutant | -4/Upper Caves Hacker-Mutant | -4/Zhirov Hacker-Mutant | -3/Proximity Caves Hacker-Mutant | -3/Research Hacker-Mutant | -3/Armory Hacker-Mutant | -3/Lab Hacker-Sprinter | -2/Research Hacker-Sprinter | -2/Testing Hacker-Sprinter | -2/Section 7 Wizard-Sprinter | -1/Access Wizard-Sprinter | -1/Command Generator-Mutant | -1/Access_0 Resources | -11 -10 -10 -10 -9 -8 -7 -7 -7 -7 -7 -6 -6 -6 -6 -5 -5 -5 -5 -5 -4 -4 -4 -4 -4 -3 -3 -3 -3 -2 -2 -2 -1 -1 -1 ----------- Run | Scr Mat Min Exi Min Mat Fac Low Low Zio Dee Pro Fac Low Dat Pro Fac Upp Upp War Pro Fac Upp Upp Zhi Pro Res Arm Lab Res Tes Sec Acc Com Ac0 Matter Collected 4822 | 220 249 188 20 10 185 104 86 99 45 890 131 175 . 20 70 . 40 55 91 74 50 30 . 50 10 219 . . 437 402 243 40 464 125 Remotely . | . . . . . . . . . . . . . . . . . . . . . . . . . . . . . . . . . . . Salvage Created 8156 | . 451 205 . 107 438 229 26 319 . 559 178 425 . 26 . . 24 122 . . 421 59 . 333 . 754 . . 647 325 302 279 1875 52 Parts 378 | . 32 24 . . 26 11 . 18 . 27 22 17 . 3 . . 3 11 . . 24 1 . 9 . 33 . . 23 14 12 15 53 . Haulers Intercepted 11 | . . . . . 4 1 . . . . . 2 . . . . . . . . . . . . . 1 . . 2 1 . . . . Recyclers Shooed 7 | . 6 1 . . . . . . . . . . . . . . . . . . . . . . . . . . . . . . . . Parts Field Recycled . | . . . . . . . . . . . . . . . . . . . . . . . . . . . . . . . . . . . Retrieved Matter . | . . . . . . . . . . . . . . . . . . . . . . . . . . . . . . . . . . . Parts Self-Destructed 62 | . . . . . . . . 13 . . 9 . . . 5 . . 7 23 . . . . 5 . . . . . . . . . . Prevented 19 | . . . . . . . . . . . 4 . . . . . . 2 10 3 . . . . . . . . . . . . . . Kills | -11 -10 -10 -10 -9 -8 -7 -7 -7 -7 -7 -6 -6 -6 -6 -5 -5 -5 -5 -5 -4 -4 -4 -4 -4 -3 -3 -3 -3 -2 -2 -2 -1 -1 -1 ------- Run | Scr Mat Min Exi Min Mat Fac Low Low Zio Dee Pro Fac Low Dat Pro Fac Upp Upp War Pro Fac Upp Upp Zhi Pro Res Arm Lab Res Tes Sec Acc Com Ac0 Combat Hostiles Destroyed 91 | . 6 9 . 2 4 4 . 5 . 7 7 . . . . . 1 5 . . 4 . . . . 5 . . 8 2 4 3 13 2 Melee 35 | . . . . . . . . . . . . . . . . . 1 5 . . 4 . . . . 5 . . 7 1 4 1 7 . Guns 29 | . 6 7 . 2 4 1 . 2 . 6 . . . . . . . . . . . . . . . . . . . . . . . 1 Cannons 10 | . . . . . . . . . . . . . . . . . . . . . . . . . . . . . 1 1 . 2 5 1 AOE 16 | . . 2 . . . 3 . 2 . 1 7 . . . . . . . . . . . . . . . . . . . . . 1 . Classes Destroyed 21 | . 6 2 . . 2 . . 1 . 2 . . . . . . 1 . . . 2 . . . . . . . 1 3 . . 1 . Worker 8 | . . 3 . . . . . . . . . . . . . . . . . . 2 . . . . . . . 1 1 . . 1 . Builder 3 | . 2 . . . . 1 . . . . . . . . . . . . . . . . . . . . . . . . . . . . Tunneler 4 | . . 2 . . . . . . . . . . . . . . . . . . . . . . . . . . 2 . . . . . Hauler 11 | . . . . . 4 1 . . . . . 2 . . . . . . . . . . . . . 1 . . 2 1 . . . . Recycler 11 | . 2 . . . . 1 . . . . . 1 . . . . . . . . 1 . . . . 2 . . . . . . 4 . Operator 2 | . 1 . . . . . . . . . . . . . . . . . . . . . . . . . . . . . . . 1 . Watcher 14 | . 1 . . . 2 2 . . . . . 3 . . . . . . . . . . . . . 3 . . . . 1 2 . . Swarmer 41 | . 2 9 . . . 4 . 4 . . 7 . . . . . . 4 . . . . . . . 3 . . 5 . . . 3 . Grunt 9 | . 4 . . 2 3 . . . . . . . . . . . . . . . . . . . . . . . . . . . . . Duelist 1 | . . . . . . . . . . . . . . . . . . . . . . . . . . . . . 1 . . . . . Protector 1 | . . . . . . . . . . . . . . . . . . . . . 1 . . . . . . . . . . . . . Researcher 3 | . . . . . . . . . . . . . . . . . . . . . . . . . . . . . . 3 . . . . Sentry 3 | . . . . . 1 . . . . . . . . . . . . . . . 1 . . . . . . . . . . . 1 . Hunter 6 | . . . . . . . . 1 . . . . . . . . . . . . . . . . . 2 . . . . . 3 . . Programmer 7 | . . . . . . . . . . . . . . . . . . . . . 2 . . . . . . . . . 2 . 3 . M Guard 2 | . . . . . . . . . . . . . . . . . . . . . . . . . . . . . . . . . 2 . Enhanced Grunt 3 | . . . . . . . . . . 2 . . . . . . . . . . . . . . . . . . . . . . . 1 Tracker 4 | . . . . . . . . . . . . . . . . . . . . . . . . . . . . . 2 . 2 . . . Combat Programmer 2 | . . . . . . . . . . . . . . . . . . . . . . . . . . . . . . . . . 2 . Striker 1 | . . . . . . . . . . . . . . . . . . . . . . . . . . . . . . 1 . . . . Alpha 7 1 | . . . . . . . . . . . . . . . . . . . . . . . . . . . . . . 1 . . . . Z-Technician 2 | . . . . . . . . . . 2 . . . . . . . . . . . . . . . . . . . . . . . . Z-Light 4 | . . . . . . . . . . 4 . . . . . . . . . . . . . . . . . . . . . . . . Master Thief 2 | . . . . . . . . . . . . . . . . . 1 1 . . . . . . . . . . . . . . . . Assembled 3 | . . . . . . . . . . 3 . . . . . . . . . . . . . . . . . . . . . . . . Wasp 2 | . . . . . . . . . . . . . . . . . . . . . . . . . . . . . . . . . 2 . Martyr 2 | . . . . . . . . . . . . . . . . . . . . . . . . . . . . . . . . . 2 . Guerrilla 1 | . . . . . . . . . . . . . . . . . . . . . . . . . . . . . . . . . 1 . Best Kill Streak 6 | . 2 4 . 2 4 5 . 4 . 3 4 2 . 1 . . 1 4 . . 4 . . . . 6 . . 6 2 2 4 3 1 Combat Bots Only 4 | . 2 3 . 2 4 4 . 4 . 3 4 . . . . . 1 4 . . 2 . . . . 3 . . 4 1 2 2 2 1 Max Kills in Single Turn 3 | . 1 2 . 1 1 2 . 2 . 2 3 1 . 1 . . 1 1 . . 2 . . . . 2 . . 1 1 1 1 2 1 Gunslinging . | . . . . . . . . . . . . . . . . . . . . . . . . . . . . . . . . . . . Exploded 3 | . . 1 . . . 2 . 1 . 1 3 . . . . . . . . . . . . . . . . . . . . . 1 . Melee 2 | . . . . . . . . . . . . . . . . . 1 1 . . 1 . . . . 2 . . 1 1 1 1 1 . Uniques/NPCs Destroyed 4 | . . . . . . . . . . 1 . . . 1 . . . . . . . . . . . . . . . . . . 1 1 Z-Imprinter (-7/Deep Caves) Data Miner (-6/Data Miner) MAIN.C Shell (-1/Command) A8 (-1/Access_0) Combat | -11 -10 -10 -10 -9 -8 -7 -7 -7 -7 -7 -6 -6 -6 -6 -5 -5 -5 -5 -5 -4 -4 -4 -4 -4 -3 -3 -3 -3 -2 -2 -2 -1 -1 -1 -------- Run | Scr Mat Min Exi Min Mat Fac Low Low Zio Dee Pro Fac Low Dat Pro Fac Upp Upp War Pro Fac Upp Upp Zhi Pro Res Arm Lab Res Tes Sec Acc Com Ac0 Damage Taken 15276 | . 204 305 . 129 431 118 . 173 . 1158 106 149 . 190 209 . . 332 98 105 169 . 78 . . 265 . . 976 480 608 81 2068 6844 Core 2398 | . 17 46 . . 41 . . 13 . 353 . 20 . 47 76 . . 29 44 . 39 . 17 . . . . . 108 26 23 . 207 1292 Absorbed by Shields 3169 | . . . . . . . . . . . . . . . . . . . . . . . . . . . . . 21 . 461 35 489 2163 Core Remaining (%) 85 | 100 . . . 74 92 . . . . . 47 . . . 83 . . . . 92 . . . . 95 . . 93 . . 89 . . . Volleys Fired 329 | . 46 22 . 6 24 14 . 26 . 41 3 . . . 1 . . . . . . . . . . 11 4 1 34 32 1 7 33 23 Largest 3 | . 2 2 . 2 3 2 . 2 . 3 2 . . . 1 . . . . . . . . . . 1 1 1 1 1 1 1 2 3 Hottest 420 | . 76 76 . 90 166 116 . 100 . 106 59 . . . . . . . . . . . . . . 40 40 40 40 100 40 200 200 420 Shots Fired 484 | . 92 43 . 12 52 27 . 33 . 48 5 . . . 1 . . . . . . . . . . 11 4 1 32 32 1 7 34 49 Gun 296 | . 92 38 . 12 52 25 . 13 . 29 2 . . . . . . . . . . . . . . 5 . . . . . . 3 25 Cannon 134 | . . . . . . . . . . . . . . . . . . . . . . . . . . 6 4 1 30 30 1 7 31 24 Launcher 17 | . . 5 . . . 2 . 4 . 3 3 . . . . . . . . . . . . . . . . . . . . . . . Special 37 | . . . . . . . . 16 . 16 . . . . 1 . . . . . . . . . . . . . 2 2 . . . . Kinetic 149 | . 80 22 . . 1 . . . . 21 2 . . . . . . . . . . . . . . 5 . . . 18 . . . . Thermal 260 | . 12 14 . . 38 24 . 21 . 21 . . . . . . . . . . . . . . . 6 4 1 30 12 1 7 31 38 Explosive 11 | . . 5 . . . 2 . 4 . . . . . . . . . . . . . . . . . . . . . . . . . . Electromagnetic 42 | . . 2 . 12 13 1 . 8 . 3 3 . . . . . . . . . . . . . . . . . . . . . . . Entropic 14 | . . . . . . . . . . . . . . . . . . . . . . . . . . . . . . . . . 3 11 Phasic 3 | . . . . . . . . . . 3 . . . . . . . . . . . . . . . . . . . . . . . . Robot Hit Streak 18 | . 10 14 . 10 10 5 . 15 . 4 2 . . . 3 . . . . . . . . . . . . . 6 9 . 12 18 10 Robot Miss Streak 7 | . 7 3 . 1 3 2 . 1 . 5 2 . . . . . . . . . . . . . . . . . 2 3 . . 2 5 Penetration Max . | . . . . . . . . . . . . . . . . . . . . . . . . . . . . . . . . . . . Secondary Targets 3 | . . . . . 2 . . . . . . . . . . . . . . . . . . . . . . . . . . . . 1 Max Gunslinging Chain 1 | . . . . . 1 . . . . . . . . . . . . . . . . . . . . . . . . . . . . 1 Capacitor 6 | . . . . . . . . . . . . . . . . . . . . . . . . . . . . . . . . . 6 . Shots Hit Robots 468 | . 59 27 . 11 42 16 2 27 . 32 2 11 . 2 1 . 2 13 . . 12 2 . 10 . 22 . 1 33 23 16 7 63 32 Core Hits 264 | . 25 17 . 6 17 14 1 14 . 24 7 6 . 1 . . 1 5 . . 8 1 . 4 . 15 . . 13 6 8 5 47 19 Critical Hits 32 | . 2 . . . . . 1 4 . 3 . 1 . . . . . . . . 1 . . . . . . . 4 2 . 3 9 2 Critical Kills 10 | . 1 . . . . . 1 2 . 1 . . . . . . . . . . . . . . . . . . 1 . . 2 2 . Critical Parts Destroyed 18 | . 1 . . . . . . 2 . 1 . . . . . . . . . . 1 . . . . . . . 3 2 . 1 6 1 Melee Attacks 492 | . . . . . 6 6 2 10 18 3 . 36 . 14 23 10 10 25 6 . 40 4 . 10 . 74 5 10 51 19 20 12 78 . Impact 15 | . . . . . . . . . 15 . . . . . . . . . . . . . . . . . . . . . . . . . Slashing 179 | . . . . . 6 6 2 10 3 3 . 23 . 5 22 10 2 10 5 . 26 4 . 10 . 18 1 6 7 . . . . . Piercing 293 | . . . . . . . . . . . . 13 . 9 1 . 8 15 1 . 14 . . . . 54 4 3 43 19 19 12 78 . Sneak Attacks 39 | . . . . . . . . . . . . 6 . 2 . . . . . . 6 . . . . 4 . . 7 5 1 . 8 . Combat Hostiles 4 | . . . . . . . . . . . . . . . . . . . . . 2 . . . . 1 . . . . 1 . . . Follow-up Attacks 46 | . . . . . . . . . . . . 7 . 1 . . . 9 . . 5 . . 1 . 10 . . 3 . . . 10 . Damage Inflicted 30507 | . 722 710 . 292 785 683 269 611 . 1130 286 840 . 268 . . 91 532 . . 964 208 . 1187 . 1060 . . 2020 2233 890 1164 9416 4146 Guns 4183 | . 722 386 . 203 579 309 . 218 . 925 15 . . . . . . . . . . . . . . . . . . . . . 83 743 Cannons 6206 | . . . . . . . . . . . . . . . . . . . . . . . . . . . . . 240 996 . 566 2992 1412 Explosions 6394 | . . 324 . 89 87 374 . 228 . 86 271 . . . . . . . . . . . . . . . . . . . . 338 2606 1991 Melee 13440 | . . . . . 119 . 269 . . . . 840 . 268 . . 91 532 . . 964 208 . 1187 . 1060 . . 1780 1237 890 260 3735 . Ramming . | . . . . . . . . . . . . . . . . . . . . . . . . . . . . . . . . . . . Kinetic 2627 | . 575 244 . . . . . . . 797 15 . . . . . . . . . . . . . . . . . . 996 . . . . Thermal 12192 | . 147 118 . 89 531 309 . 231 . 181 36 . . . . . . . . . . . . . . . . . 240 . . 904 5598 3808 Explosive 926 | . . 324 . . . 374 . 228 . . . . . . . . . . . . . . . . . . . . . . . . . . Electromagnetic 835 | . . 24 . 203 135 . . 152 . 86 235 . . . . . . . . . . . . . . . . . . . . . . . Impact . | . . . . . . . . . . . . . . . . . . . . . . . . . . . . . . . . . . . Slashing 3027 | . . . . . 119 . 269 . . . . 326 . 117 . . . 177 . . 388 208 . 1187 . 196 . . 40 . . . . . Piercing 10413 | . . . . . . . . . . . . 514 . 151 . . 91 355 . . 576 . . . . 864 . . 1740 1237 890 260 3735 . Entropic 421 | . . . . . . . . . . . . . . . . . . . . . . . . . . . . . . . . . 83 338 Phasic 66 | . . . . . . . . . . 66 . . . . . . . . . . . . . . . . . . . . . . . . Highest Corruption 5 | . 2 2 2 2 5 . . . . . . . . . . . . . . 1 2 2 2 2 2 3 3 3 2 2 2 . . . Average Corruption 2 | . 2 2 2 2 5 . . . . . . . . . . . . . . 1 2 2 2 2 2 3 3 3 2 2 2 . . . Corruption Purged . | . . . . . . . . . . . . . . . . . . . . . . . . . . . . . . . . . . . Effects 85 | . 10 7 7 2 5 . . . . . . . . . . . . . . 3 2 2 1 1 8 17 2 2 5 6 5 . . . Message Errors 24 | . 3 2 1 . . . . . . . . . . . . . . . . 1 . 1 1 . . 8 2 . . 3 2 . . . Matter Fused 5 | . . . . . 1 . . . . . . . . . . . . . . . . . . . . 3 . 1 . . . . . . Heat Flow Errors 9 | . 1 1 . . . . . . . . . . . . . . . . . . . 1 . 1 3 1 . . 1 . . . . . Energy Discharges 17 | . 2 2 4 1 1 . . . . . . . . . . . . . . 2 . . . . 4 . . . 1 . . . . . Data Loss (minor) 15 | . 4 1 2 . 1 . . . . . . . . . . . . . . . 1 . . . 1 1 . . 1 2 1 . . . Targeting Errors 12 | . . 1 . 1 1 . . . . . . . . . . . . . . . 1 . . . . 4 . 1 . 1 2 . . . Weapon Failures 3 | . . . . . 1 . . . . . . . . . . . . . . . . . . . . . . . 2 . . . . . Overload Shots . | . . . . . . . . . . . . . . . . . . . . . . . . . . . . . . . . . . . Overflow Damage 2559 | . . 24 . . 88 10 137 22 . . 3 111 . 91 . . . 12 . . 62 45 . 377 . 30 . . 178 465 82 34 643 145 Projectiles 357 | . . . . . . . . 3 . . . . . . . . . . . . . . . . . . . . . 203 . 25 123 3 Explosions 614 | . . 24 . . 88 10 . 19 . . 3 . . . . . . . . . . . . . . . . . . . . 9 319 142 Melee 1588 | . . . . . . . 137 . . . . 111 . 91 . . . 12 . . 62 45 . 377 . 30 . . 178 262 82 . 201 . Knockbacks 9 | . . . . . . . . . . . . . . . . . . . . . . . . . . . . . . 9 . . . . Impact . | . . . . . . . . . . . . . . . . . . . . . . . . . . . . . . . . . . . Kinetic 9 | . . . . . . . . . . . . . . . . . . . . . . . . . . . . . . 9 . . . . Secondary . | . . . . . . . . . . . . . . . . . . . . . . . . . . . . . . . . . . . Self-Inflicted Damage 432 | . . . . 45 132 . . . . 14 46 . . . . . . . . . . . . . . . . . . . . . . 195 Shots 9 | . . . . 1 2 . . . . 1 2 . . . . . . . . . . . . . . . . . . . . . . 3 Rammed . | . . . . . . . . . . . . . . . . . . . . . . . . . . . . . . . . . . . Targets Rammed . | . . . . . . . . . . . . . . . . . . . . . . . . . . . . . . . . . . . Kicked . | . . . . . . . . . . . . . . . . . . . . . . . . . . . . . . . . . . . Crushed . | . . . . . . . . . . . . . . . . . . . . . . . . . . . . . . . . . . . Highest Temperature 905 | . 221 125 . 180 396 . . 18 . 905 46 3 . . . . . . . . 13 207 302 177 263 160 1 1 216 56 1 158 392 221 Average Temperature 98 | . 33 28 . 78 122 . . 12 . 345 21 2 . . . . . . . . 6 65 150 79 101 48 1 1 108 24 1 68 105 94 Received Heat Transfer 1366 | . 75 . . 48 144 . . . . 306 . 30 . 24 12 . . . . . 21 . 12 . . 9 . . . 54 9 4 111 507 Effects 21 | . . . . . 2 . . . . 15 . . . . . . . . . . . . . . 1 . . . . . . . 3 . Shutdowns 1 | . . . . . . . . . . . . . . . . . . . . . . . . . . . . . . . . . 1 . Energy Bleed 5 | . . . . . 1 . . . . 3 . . . . . . . . . . . . . . . . . . . . . . 1 . Interference 2 | . . . . . . . . . . . . . . . . . . . . . . . . . 1 . . . . . . . 1 . Matter Decay 4 | . . . . . 1 . . . . 3 . . . . . . . . . . . . . . . . . . . . . . . . Short Circuit 3 | . . . . . . . . . . 3 . . . . . . . . . . . . . . . . . . . . . . . . Damage (minor) 2 | . . . . . . . . . . 2 . . . . . . . . . . . . . . . . . . . . . . . . Damage (major) 3 | . . . . . . . . . . 3 . . . . . . . . . . . . . . . . . . . . . . . . Damage (core) 1 | . . . . . . . . . . 1 . . . . . . . . . . . . . . . . . . . . . . . . Siege Activations . | . . . . . . . . . . . . . . . . . . . . . . . . . . . . . . . . . . . Robots Corrupted 1 | . . . . . . . . 1 . . . . . . . . . . . . . . . . . . . . . . . . . . Combat Hostiles 1 | . . . . . . . . 1 . . . . . . . . . . . . . . . . . . . . . . . . . . Parts Fried 5 | . . . . . 1 . . 4 . . . . . . . . . . . . . . . . . . . . . . . . . . Impact Corruptions . | . . . . . . . . . . . . . . . . . . . . . . . . . . . . . . . . . . . Robots Melted . | . . . . . . . . . . . . . . . . . . . . . . . . . . . . . . . . . . . Combat Hostiles . | . . . . . . . . . . . . . . . . . . . . . . . . . . . . . . . . . . . Parts Melted 3 | . . . . . . 1 . . . . . . . . . . . . . . 1 . . . . . . . 1 . . . . . Heat Transferred 8581 | . 370 296 . 100 1025 629 . 703 . 406 . . . . . . . . . . . . . . . . . . 203 . . 470 2045 2334 Parts Sabotaged . | . . . . . . . . . . . . . . . . . . . . . . . . . . . . . . . . . . . Parts Stolen 2 | . . . . . . . . . . . . . . . . . 1 1 . . . . . . . . . . . . . . . . Parts Stripped . | . . . . . . . . . . . . . . . . . . . . . . . . . . . . . . . . . . . Power Chain Reactions 5 | . . . . 1 2 . . . . . 2 . . . . . . . . . . . . . . . . . . . . . . . Missiles Intercepted 4 | . . . . . . . . . . . . . . . . . . . . . . . . . . . . . . . . . 4 . Alert | -11 -10 -10 -10 -9 -8 -7 -7 -7 -7 -7 -6 -6 -6 -6 -5 -5 -5 -5 -5 -4 -4 -4 -4 -4 -3 -3 -3 -3 -2 -2 -2 -1 -1 -1 ------- Run | Scr Mat Min Exi Min Mat Fac Low Low Zio Dee Pro Fac Low Dat Pro Fac Upp Upp War Pro Fac Upp Upp Zhi Pro Res Arm Lab Res Tes Sec Acc Com Ac0 Peak Influence 1335 | . 166 155 . 50 121 190 . . . . . 109 . . . 194 . . . . 179 . . . . 308 230 . 537 1335 1105 935 756 . Initial 662 | . . . . . 19 54 . . . . . . . . . 72 . . . . 46 . . . . . 161 . . 301 646 662 598 . Average 211 | . 78 71 . 48 33 74 . . . . . 41 . . . 93 . . . . 101 . . . . 183 169 . 153 970 851 776 336 . Maximum Alert Level 4 | . . . . . . . . . . . . . . . . . . . . . . . . . . 1 1 . 2 4 4 3 3 . Low Security (%) 70 | 100 100 100 . 100 100 100 . . . . . 100 . . . 100 . . . . 100 . . . . 43 88 . 60 . . . 37 . Level 1 15 | . . . . . . . . . . . . . . . . . . . . . . . . . . 56 11 . 36 8 . . 44 . Level 2 5 | . . . . . . . . . . . . . . . . . . . . . . . . . . . . . 2 8 18 34 15 . Level 3 6 | . . . . . . . . . . . . . . . . . . . . . . . . . . . . . . 45 78 65 1 . Level 4 1 | . . . . . . . . . . . . . . . . . . . . . . . . . . . . . . 37 2 . . . Level 5 . | . . . . . . . . . . . . . . . . . . . . . . . . . . . . . . . . . . . High Security . | . . . . . . . . . . . . . . . . . . . . . . . . . . . . . . . . . . . Max Security . | . . . . . . . . . . . . . . . . . . . . . . . . . . . . . . . . . . . Squads Dispatched 46 | . 4 . . . 1 . . . . . . 2 . . . 2 . . . . 1 . . . . 1 . . 4 11 5 8 7 . Investigation 8 | . 2 . . . 1 . . . . . . 1 . . . 1 . . . . . . . . . . . . . 1 . . 2 . Extermination 8 | . . . . . . . . . . . . . . . . 1 . . . . 1 . . . . . . . . 1 . 1 4 . Reinforcement 14 | . 2 . . . . . . . . . . 1 . . . . . . . . . . . . . . . . 1 6 1 2 1 . Assault 6 | . . . . . . . . . . . . . . . . . . . . . . . . . . . . . . 3 1 2 . . Garrison 2 | . . . . . . . . . . . . . . . . . . . . . . . . . . . . . . . . 2 . . Intercept 8 | . . . . . . . . . . . . . . . . . . . . . . . . . . 1 . . 3 . 3 1 . . Construction Impeded 2 | . . . . . . . . . . . . . . . . . . . . . . . . . . . . . . 1 . 1 . . Haulers Reinforced 4 | . . . . . . . . . . . . 1 . . . . . . . . . . . . . . . . 1 . 1 1 . . Stealth | -11 -10 -10 -10 -9 -8 -7 -7 -7 -7 -7 -6 -6 -6 -6 -5 -5 -5 -5 -5 -4 -4 -4 -4 -4 -3 -3 -3 -3 -2 -2 -2 -1 -1 -1 --------- Run | Scr Mat Min Exi Min Mat Fac Low Low Zio Dee Pro Fac Low Dat Pro Fac Upp Upp War Pro Fac Upp Upp Zhi Pro Res Arm Lab Res Tes Sec Acc Com Ac0 Distress Signals 19 | . 1 . . . . . . . . . . . . . . 1 . . . . . . . . . 2 1 . 8 3 2 1 . . Communications Jammed . | . . . . . . . . . . . . . . . . . . . . . . . . . . . . . . . . . . . Distress Signals . | . . . . . . . . . . . . . . . . . . . . . . . . . . . . . . . . . . . Times Spotted 367 | . 19 9 . 2 12 6 . 6 . 12 5 5 1 4 11 13 1 6 21 6 10 . 8 . . 17 6 4 31 33 37 19 35 28 Peak Tracking Total 20 | . 3 3 . 2 5 4 . 4 . 6 3 2 1 4 4 6 1 5 16 6 7 . 5 . . 8 7 3 6 16 15 10 5 20 Tactical Retreats 33 | . 2 . . . . . . 1 . . . 1 . . 2 2 . 1 1 2 1 . 1 . . 3 . . . 2 8 3 1 2 Traps | -11 -10 -10 -10 -9 -8 -7 -7 -7 -7 -7 -6 -6 -6 -6 -5 -5 -5 -5 -5 -4 -4 -4 -4 -4 -3 -3 -3 -3 -2 -2 -2 -1 -1 -1 ------- Run | Scr Mat Min Exi Min Mat Fac Low Low Zio Dee Pro Fac Low Dat Pro Fac Upp Upp War Pro Fac Upp Upp Zhi Pro Res Arm Lab Res Tes Sec Acc Com Ac0 Traps Triggered 13 | . 2 . . . 1 . . . . . . . . . 1 . . . . . 1 . . . . 3 . . 1 1 . . 3 . Indirectly . | . . . . . . . . . . . . . . . . . . . . . . . . . . . . . . . . . . . Trap Hack Attempts . | . . . . . . . . . . . . . . . . . . . . . . . . . . . . . . . . . . . Triggered . | . . . . . . . . . . . . . . . . . . . . . . . . . . . . . . . . . . . Disarmed . | . . . . . . . . . . . . . . . . . . . . . . . . . . . . . . . . . . . Reprogrammed 4 | . . . . . . . . . . . . . . . . . . . . . . . . . . . . . . . 4 . . . Reused 1 | . . . . . . . . . . . . . . . . . . . . . . . . . . . . . . . 1 . . . Traps Extracted . | . . . . . . . . . . . . . . . . . . . . . . . . . . . . . . . . . . . Installed . | . . . . . . . . . . . . . . . . . . . . . . . . . . . . . . . . . . . Triggered 14 | . . . . . . . . . . . . . . . . . . 1 6 2 . . . . . . . . . . 1 1 3 . Machines | -11 -10 -10 -10 -9 -8 -7 -7 -7 -7 -7 -6 -6 -6 -6 -5 -5 -5 -5 -5 -4 -4 -4 -4 -4 -3 -3 -3 -3 -2 -2 -2 -1 -1 -1 ---------- Run | Scr Mat Min Exi Min Mat Fac Low Low Zio Dee Pro Fac Low Dat Pro Fac Upp Upp War Pro Fac Upp Upp Zhi Pro Res Arm Lab Res Tes Sec Acc Com Ac0 Machines Disabled 35 | . . 2 . . 2 . . . . 1 . . . . . . . . . . . . . . . 1 1 1 1 17 2 . 7 . Max in Single Turn 2 | . . 1 . . 2 . . . . . . . . . . . . . . . . . . . . 1 1 1 . 1 1 . 2 . Garrison Access 4 | . . . . . . . . . . . . . . . . . . . . . 1 . . . . 1 . . . 1 1 . . . Machines Sabotaged . | . . . . . . . . . . . . . . . . . . . . . . . . . . . . . . . . . . . Garrisons Compromised . | . . . . . . . . . . . . . . . . . . . . . . . . . . . . . . . . . . . Overloaded Fab Kills . | . . . . . . . . . . . . . . . . . . . . . . . . . . . . . . . . . . . Fab Network Shutdowns . | . . . . . . . . . . . . . . . . . . . . . . . . . . . . . . . . . . . Hacking | -11 -10 -10 -10 -9 -8 -7 -7 -7 -7 -7 -6 -6 -6 -6 -5 -5 -5 -5 -5 -4 -4 -4 -4 -4 -3 -3 -3 -3 -2 -2 -2 -1 -1 -1 --------- Run | Scr Mat Min Exi Min Mat Fac Low Low Zio Dee Pro Fac Low Dat Pro Fac Upp Upp War Pro Fac Upp Upp Zhi Pro Res Arm Lab Res Tes Sec Acc Com Ac0 Machines Accessed 103 | . 7 1 2 . 7 3 2 . . . . 9 . 4 . 4 1 . 4 1 5 . . 7 . 10 3 2 2 4 6 8 11 . Terminals 58 | . 6 . . . 6 1 . . . . . 5 . . . 3 . . . 1 4 . . . . 7 2 . . 3 5 7 8 . Fabricators 3 | . . . . . . 1 . . . . . 1 . . . . . . . . . . . . . . 1 . . . . . . . Repair Stations 2 | . . . . . . . . . . . . 1 . . . . . . . . . . . . . . . . . . . . 1 . Recycling Units 3 | . 1 . . . . . . . . . . . . . . . . . . . . . . . . . . . . . . . 2 . Scanalyzers 10 | . . . . . 1 1 . . . . . 2 . . . 1 . . . . . . . . . 2 . . 2 . . 1 . . Garrison Access 4 | . . . . . . . . . . . . . . . . . . . . . 1 . . . . 1 . . . 1 1 . . . Total Hacks 370 | . 26 1 2 . 26 8 3 . . . . 28 . 24 . 15 1 . 7 3 27 . . 42 . 28 17 21 4 10 19 19 39 . Successful 273 | . 14 1 2 . 18 5 3 . . . . 19 . 24 . 11 1 . 7 3 21 . . 42 . 13 9 21 3 5 14 9 28 . Failed 97 | . 12 . . . 8 3 . . . . . 9 . . . 4 . . . . 6 . . . . 15 8 . 1 5 5 10 11 . Catastrophic 10 | . . . . . . 1 . . . . . . . . . 1 . . . . . . . . . 1 1 . . 1 . 2 3 . Database Lockouts . | . . . . . . . . . . . . . . . . . . . . . . . . . . . . . . . . . . . Manual 144 | . 17 . 1 . 16 1 . . 1 . . 10 . . . 10 . . 1 . 11 . . . . 11 13 2 . 2 14 14 20 . Terminals 217 | . 23 . . . 23 1 . . . . . 18 . . . 13 . . . 3 26 . . . . 20 13 . . 9 18 18 32 . Fabricators 10 | . . . . . . 3 . . . . . 3 . . . . . . . . . . . . . . 4 . . . . . . . Repair Stations 5 | . . . . . . . . . . . . 2 . . . . . . . . . . . . . . . . . . . . 3 . Recycling Units 7 | . 3 . . . . . . . . . . . . . . . . . . . . . . . . . . . . . . . 4 . Scanalyzers 25 | . . . . . 3 4 . . . . . 5 . . . 2 . . . . . . . . . 6 . . 4 . . 1 . . Garrison Access 5 | . . . . . . . . . . . . . . . . . . . . . 1 . . . . 2 . . . 1 1 . . . Terminal Hacks 190 | . 8 1 2 . 10 . 3 . . . . 6 . 24 . 5 1 . 7 3 12 . . 42 . 5 4 21 . 3 9 5 19 . Record 83 | . . . 1 . . . 2 . . . . 1 . 11 . . . . 5 3 . . . 34 . 3 . 21 . . 1 . 1 . Part Schematic 14 | . . . . . 3 . . . . . . 1 . 5 . . . . . . 1 . . 4 . . . . . . . . . . Robot Schematic 5 | . . . . . . . . . . . . . . 5 . . . . . . . . . . . . . . . . . . . . Robot Analysis 5 | . 4 . . . 1 . . . . . . . . . . . . . . . . . . . . . . . . . . . . . Prototype ID Bank 11 | . 1 . . . 1 . . . . . . . . 3 . 1 . . . . 1 . . 4 . . . . . . . . . . Open Door 12 | . . 1 . . . . 1 . . . . . . . . . 1 . 2 . . . . . . . . . . 1 2 3 1 . Level Access Points 5 | . . . . . 1 . . . . . . . . . . 1 . . . . . . . . . 1 . . . . 1 . 1 . Branch Access Points 5 | . . . . . 1 . . . . . . 1 . . . 1 . . . . 1 . . . . 1 . . . . . . . . Emergency Access Points 4 | . . . . . 1 . . . . . . . . . . . . . . . 1 . . . . . . . . 1 . . 1 . Machine Index 1 | . . . . . . . . . . . . 1 . . . . . . . . . . . . . . . . . . . . . . Terminal Index 1 | . 1 . . . . . . . . . . . . . . . . . . . . . . . . . . . . . . . . . Alert Level 5 | . . . . . . . . . . . . . . . . . . . . . 1 . . . . . . . . . . 1 3 . Unreport Threat 4 | . . . . . . . . . . . . . . . . . . . . . . . . . . . . . . . . 1 3 . Locate Traps 7 | . . . . . . . . . . . . 1 . . . . . . . . 1 . . . . . 1 . . . 1 . 3 . Reprogram Traps 1 | . . . . . . . . . . . . . . . . . . . . . . . . . . . . . . . 1 . . . Maintenance Status 1 | . . . . . . . . . . . . . . . . . . . . . 1 . . . . . . . . . . . . . Hauler Manifests 4 | . . . . . 1 . . . . . . 1 . . . 1 . . . . 1 . . . . . . . . . . . . . Registered Components 3 | . . . . . . . . . . . . . . . . . . . . . 1 . . . . . 1 . . . . . 1 . Registered Prototypes 3 | . . . . . . . . . . . . . . . . . . . . . 1 . . . . . 1 . . . . . 1 . Zone Layout 12 | . 2 . . . 1 . . . . . . . . . . 1 . . . . 2 . . . . . 1 . . . 3 . 2 . EX-Prototype ID Bank 1 | . . . 1 . . . . . . . . . . . . . . . . . . . . . . . . . . . . . . . Protovariant Controls 1 | . . . . . . . . . . . . . . . . . . . . . . . . . . . . . . 1 . . . . Disengage Seal 2 | . . . . . . . . . . . . . . . . . . . . . . . . . . . . . . . . . 2 . Fabricator Hacks 4 | . . . . . . 1 . . . . . 1 . . . . . . . . . . . . . . 2 . . . . . . . Load Schematic 2 | . . . . . . . . . . . . 1 . . . . . . . . . . . . . . 1 . . . . . . . Build 2 | . . . . . . 1 . . . . . . . . . . . . . . . . . . . . 1 . . . . . . . Repair Station Hacks 4 | . . . . . . . . . . . . 2 . . . . . . . . . . . . . . . . . . . . 2 . Scan Component 2 | . . . . . . . . . . . . 1 . . . . . . . . . . . . . . . . . . . . 1 . Repair 2 | . . . . . . . . . . . . 1 . . . . . . . . . . . . . . . . . . . . 1 . Recycling Unit Hacks . | . . . . . . . . . . . . . . . . . . . . . . . . . . . . . . . . . . . Scanalyzer 22 | . . . . . 3 4 . . . . . 5 . . . 2 . . . . . . . . . 4 . . 3 . . 1 . . Insert Component 15 | . . . . . 2 2 . . . . . 2 . . . 2 . . . . . . . . . 3 . . 3 . . 1 . . Analyze 7 | . . . . . 1 2 . . . . . 3 . . . . . . . . . . . . . 1 . . . . . . . . Garrison Access Hacks 4 | . . . . . . . . . . . . . . . . . . . . . 1 . . . . 1 . . . 1 1 . . . Seal Access 4 | . . . . . . . . . . . . . . . . . . . . . 1 . . . . 1 . . . 1 1 . . . Unauthorized Hacks 49 | . 6 . . . 5 . . . . . . 5 . . . 4 . . . . 8 . . . . 3 3 . . 1 4 3 7 . Terminals 48 | . 5 . . . 5 . . . . . . 5 . . . 4 . . . . 8 . . . . 3 3 . . 1 4 3 7 . Track 7 | . . . . . . . . . . . . 1 . . . 1 . . . . 1 . . . . . 1 . . . . . 3 . Assimilate 4 | . . . . . . . . . . . . . . . . . . . . . 2 . . . . . . . . . 2 . . . Botnet 31 | . 5 . . . 5 . . . . . . 4 . . . 2 . . . . 4 . . . . 3 1 . . 1 2 2 2 . Disrupt 1 | . . . . . . . . . . . . . . . . . . . . . . . . . . . . . . . . . 1 . Operators 5 | . . . . . . . . . . . . . . . . 1 . . . . 1 . . . . . 1 . . . . 1 1 . Fabricators . | . . . . . . . . . . . . . . . . . . . . . . . . . . . . . . . . . . . Repair Stations . | . . . . . . . . . . . . . . . . . . . . . . . . . . . . . . . . . . . Recycling Units 1 | . 1 . . . . . . . . . . . . . . . . . . . . . . . . . . . . . . . . . Tunnel 1 | . 1 . . . . . . . . . . . . . . . . . . . . . . . . . . . . . . . . . Scanalyzers . | . . . . . . . . . . . . . . . . . . . . . . . . . . . . . . . . . . . Garrison Access . | . . . . . . . . . . . . . . . . . . . . . . . . . . . . . . . . . . . Data Cores Recovered . | . . . . . . . . . . . . . . . . . . . . . . . . . . . . . . . . . . . Used . | . . . . . . . . . . . . . . . . . . . . . . . . . . . . . . . . . . . Hacking Detections 56 | . 7 . . . 6 2 . . . . . 7 . . . 3 . . . 1 1 . . . . 7 3 . 1 2 3 5 8 . Full Trace Events 3 | . . . . . . . . . . . . 1 . . . 1 . . . . . . . . . . . . . . . . 1 . Feedback Events . | . . . . . . . . . . . . . . . . . . . . . . . . . . . . . . . . . . . Feedback Blocked . | . . . . . . . . . . . . . . . . . . . . . . . . . . . . . . . . . . . Robot Schematics Acquired 5 | . . . . . . . . . . . . . . 5 . . . . . . . . . . . . . . . . . . . . Robots Built . | . . . . . . . . . . . . . . . . . . . . . . . . . . . . . . . . . . . Matter . | . . . . . . . . . . . . . . . . . . . . . . . . . . . . . . . . . . . Time . | . . . . . . . . . . . . . . . . . . . . . . . . . . . . . . . . . . . Total Robot Build Rating . | . . . . . . . . . . . . . . . . . . . . . . . . . . . . . . . . . . . Part Schematics Acquired 19 | . . . . . 4 2 . . . . . 2 . 5 . . . . . . 1 . . 4 . 1 . . . . . . . . Parts Built 2 | . . . . . . 1 . . . . . . . . . . . . . . . . . . . . 1 . . . . . . . Matter 314 | . . . . . . 212 . . . . . . . . . . . . . . . . . . . . 102 . . . . . . . Time 78 | . . . . . . 53 . . . . . . . . . . . . . . . . . . . . 25 . . . . . . . Total Part Build Rating 7 | . . . . . . 6 . . . . . . . . . . . . . . . . . . . . 1 . . . . . . . Parts Repaired 2 | . . . . . . . . . . . . 1 . . . . . . . . . . . . . . . . . . . . 1 . Time 55 | . . . . . . . . . . . . 37 . . . . . . . . . . . . . . . . . . . . 18 . Parts Recycled . | . . . . . . . . . . . . . . . . . . . . . . . . . . . . . . . . . . . Recycled Matter . | . . . . . . . . . . . . . . . . . . . . . . . . . . . . . . . . . . . Retrieved Matter . | . . . . . . . . . . . . . . . . . . . . . . . . . . . . . . . . . . . Retrieved Components . | . . . . . . . . . . . . . . . . . . . . . . . . . . . . . . . . . . . Parts Scanalyzed 5 | . . . . . 1 2 . . . . . 1 . . . . . . . . . . . . . 1 . . . . . . . . Part Schematics Acquired 5 | . . . . . 1 2 . . . . . 1 . . . . . . . . . . . . . 1 . . . . . . . . Parts Damaged . | . . . . . . . . . . . . . . . . . . . . . . . . . . . . . . . . . . . Bothacking | -11 -10 -10 -10 -9 -8 -7 -7 -7 -7 -7 -6 -6 -6 -6 -5 -5 -5 -5 -5 -4 -4 -4 -4 -4 -3 -3 -3 -3 -2 -2 -2 -1 -1 -1 ------------ Run | Scr Mat Min Exi Min Mat Fac Low Low Zio Dee Pro Fac Low Dat Pro Fac Upp Upp War Pro Fac Upp Upp Zhi Pro Res Arm Lab Res Tes Sec Acc Com Ac0 Used RIF Installer . | . . . . . . . . . . . . . . . . . . . . . . . . . . . . . . . . . . . Robots Hacked 4 | . . . . . . . . . . . . . . . . . . . . . . . . . . 1 . 1 1 . 1 . . . Non-combat . | . . . . . . . . . . . . . . . . . . . . . . . . . . . . . . . . . . . Combat 1 | . . . . . . . . . . . . . . . . . . . . . . . . . . . . . 1 . . . . . Robot Hacks Applied 1 | . . . . . . . . . . . . . . . . . . . . . . . . . . . . . 1 . . . . . parse_system 1 | . . . . . . . . . . . . . . . . . . . . . . . . . . . . . 1 . . . . . Manual 3 | . . . . . . . . . . . . . . . . . . . . . . . . . . 1 . 1 . . 1 . . . Relay Couplers Released 1 | . . . . . . . . . . . . . . . . . . . . . . . . . . . . . . . 1 . . . Machine Destruction 1 | . . . . . . . . . . . . . . . . . . . . . . . . . . . . . . . 1 . . . Robots Rewired 11 | . . . . . . . . . . . . . . . . . . . 5 . 1 . . . . . 4 . . 1 . . . . Allies Hacked 4 | . . . . . . . . . . . . . . . . . . . 1 . . . . . . . . . 2 1 . . . . Hacks Repelled . | . . . . . . . . . . . . . . . . . . . . . . . . . . . . . . . . . . . Allies | -11 -10 -10 -10 -9 -8 -7 -7 -7 -7 -7 -6 -6 -6 -6 -5 -5 -5 -5 -5 -4 -4 -4 -4 -4 -3 -3 -3 -3 -2 -2 -2 -1 -1 -1 -------- Run | Scr Mat Min Exi Min Mat Fac Low Low Zio Dee Pro Fac Low Dat Pro Fac Upp Upp War Pro Fac Upp Upp Zhi Pro Res Arm Lab Res Tes Sec Acc Com Ac0 Total Allies 33 | . . 1 . . . . . . 2 . . . . . 1 . . . 5 . 2 . . . . 1 4 . 4 4 3 3 3 . Largest Group 5 | . . 1 1 . . . . . 2 2 . . . . 1 . . . 5 . 2 . . . . 1 4 . 4 5 2 3 3 . Highest-Rated Group 456 | . . 31 31 . . . . . 188 188 . . . . 81 . . . 234 . 57 . . . . 115 192 . 408 456 222 368 366 . Highest-Rated Ally 222 | . . 31 31 . . . . . 94 94 . . . . 81 . . . 60 . 47 . . . . 115 48 . 157 157 222 131 131 . Total Orders 69 | . . . . . . 3 . 3 1 2 3 . . 2 11 2 . 1 1 . 5 . 2 . . 8 9 . 3 3 6 4 . . STAY 18 | . . . . . . 1 . 1 . . 1 . . . 3 . . . . . 3 . . . . 2 4 . . 1 2 . . . ROAM 1 | . . . . . . . . . . . . . . . 1 . . . . . . . . . . . . . . . . . . . FOLLOW 14 | . . . . . . 1 . . . . 1 . . . 3 . . . . . 1 . . . . 1 4 . . 1 2 . . . GUARD 1 | . . . . . . . . . . . . . . . 1 . . . . . . . . . . . . . . . . . . . EXPLORE 4 | . . . . . . . . . . . 1 . . . . 1 . . . . . . . . . . . . . . . 2 . . RETURN 31 | . . . . . . 1 . 2 1 2 . . . 2 3 1 . 1 1 . 1 . 2 . . 5 1 . 3 1 2 2 . . Ally Attacks 193 | . . . . . . . . . . 34 . . . . 5 . . . 12 . 2 . . . . 12 15 . 36 53 6 14 4 . Total Damage 9506 | . . . . . . . . . . 904 . . . . 153 . . . 735 . 94 . . . . 926 612 . 1084 3774 605 596 23 . Kills 53 | . . . . . . . . . . 8 . . . . 4 . . . 2 . . . . . . 7 4 . 10 14 2 2 . . Allies Corrupted 6 | . . . . . . . . . . . . . . . . . . . . . 1 . . . . 1 3 . . . 1 . . . Allies Melted . | . . . . . . . . . . . . . . . . . . . . . . . . . . . . . . . . . . . Field Lobotomies 5 | . . . . . . . . . . . . . . . 1 . . . . . . . . . . . . . 2 2 . . . . Intel | -11 -10 -10 -10 -9 -8 -7 -7 -7 -7 -7 -6 -6 -6 -6 -5 -5 -5 -5 -5 -4 -4 -4 -4 -4 -3 -3 -3 -3 -2 -2 -2 -1 -1 -1 ------- Run | Scr Mat Min Exi Min Mat Fac Low Low Zio Dee Pro Fac Low Dat Pro Fac Upp Upp War Pro Fac Upp Upp Zhi Pro Res Arm Lab Res Tes Sec Acc Com Ac0 Robot Analysis Total 120 | . 4 . . . 1 . . . . . . . . 115 . . . . . . . . . . . . . . . . . . . . Derelict Logs Recovered 13 | . . 3 . 1 . . . 1 2 . 1 . . . 2 . . . . . . 1 2 . . . . . . . . . . . Drone Launches 74 | . . . . . . 1 . 3 . 3 3 2 1 . 10 2 . 6 1 4 1 1 1 1 . 7 1 . 9 3 6 5 3 . Drone Recoveries 55 | . . . . . . . . 3 1 2 2 2 . 2 3 2 . 5 . 3 1 . 2 . . 8 1 . 7 3 4 3 1 . Exploration | -11 -10 -10 -10 -9 -8 -7 -7 -7 -7 -7 -6 -6 -6 -6 -5 -5 -5 -5 -5 -4 -4 -4 -4 -4 -3 -3 -3 -3 -2 -2 -2 -1 -1 -1 ------------- Run | Scr Mat Min Exi Min Mat Fac Low Low Zio Dee Pro Fac Low Dat Pro Fac Upp Upp War Pro Fac Upp Upp Zhi Pro Res Arm Lab Res Tes Sec Acc Com Ac0 Turns Passed 21853 | 11 1228 895 812 180 1013 721 996 1387 1811 1742 1101 740 13 95 1145 250 260 352 483 240 488 359 90 101 516 689 166 77 550 404 298 320 2059 261 Spaces Moved 20345 | 5 615 461 458 85 461 391 654 825 1232 1278 689 1404 40 143 766 239 499 585 880 373 604 579 228 162 668 751 92 113 816 589 561 611 2337 151 Core 42 | . . . . . . . . . . 14 . . . . . . . . . . . . . . . . . . 2 . . . 3 23 Treads 2026 | 5 615 461 458 85 399 . . . . . . . . . . . . . . . . . . . . . . . . . . . 1 2 Legs 3675 | . . . . . 62 391 654 825 1125 208 . . . . . . . . . . . . . . . . . . . . . . 284 126 Wheels . | . . . . . . . . . . . . . . . . . . . . . . . . . . . . . . . . . . . Hover 8252 | . . . . . . . . . . 1016 689 362 40 143 766 239 499 585 880 373 604 579 228 162 668 419 . . . . . . . . Flight 6350 | . . . . . . . . . 107 40 . 1042 . . . . . . . . . . . . . 332 92 113 814 589 561 611 2049 . Fastest Speed 14 | 160 160 160 160 180 150 150 150 150 50 48 24 20 20 16 16 36 23 20 20 19 21 22 22 36 36 20 34 34 14 29 29 29 29 50 Average Speed 73 | 160 167 175 174 180 182 150 150 150 140 107 49 41 30 33 39 42 35 38 38 45 38 44 37 41 36 33 34 34 29 29 31 29 39 103 Slowest Speed 1800 | 160 180 180 180 180 205 150 150 150 150 1800 118 50 36 40 98 98 36 97 40 95 43 45 45 98 36 36 34 34 200 31 215 29 250 180 Overloaded Moves 130 | . . . . . . . . . . . . . . 12 28 . 3 . . 84 . . . . . 3 . . . . . . . . Propulsion Burnouts . | . . . . . . . . . . . . . . . . . . . . . . . . . . . . . . . . . . . Robots Hopped 42 | . . . . . . . . . . . . 2 . . . . . . . . . . . . . 8 2 . 1 6 6 2 15 . Cave-ins Triggered . | . . . . . . . . . . . . . . . . . . . . . . . . . . . . . . . . . . . Teleports 2 | . . . . . . . . . . . . . . . . . . . . . . . . . . . 1 . . . . . 1 . Exploration Rate (%) 53 | 2 93 95 70 36 47 10 68 87 84 76 61 28 14 77 54 14 66 67 85 61 19 75 48 62 87 31 9 96 23 60 45 23 68 15 Regions Visited 34 Branch Regions 25 Pre-discovered Areas 38 | . 1 2 1 1 . . . . 3 . . . . 25 . . . . . . . 1 1 3 . . . . . . . . . . Known Exits Taken 24 | . . . . . 1 1 1 1 . 1 1 1 1 1 1 1 1 1 . 1 1 1 . 1 1 1 . 1 1 1 1 1 . . Unknown Exits Taken 10 | 1 1 1 1 1 . . . . 1 . . . . . . . . . 1 . . . 1 . . . 1 . . . . . 1 . Scrap Searched 22 | . . 1 . 1 . . 2 1 2 . 1 . . . 2 . 1 2 . 1 . 1 2 . 5 . . . . . . . . . Spaces Dug 246 | . . . . . 3 6 . 10 5 4 . 18 . 3 19 9 3 . . . 19 2 . . . 31 6 . 36 14 1 34 23 . Terrain Destroyed 627 | . . 30 . 7 52 21 . 46 5 6 4 18 . 3 19 9 3 . . . 19 2 . . . 31 6 . 37 21 1 51 153 83 Melee 169 | . . . . . 3 6 . 10 5 3 . 18 . 3 19 9 3 . . . 19 2 . . . 21 2 . 15 6 1 6 18 . Projectile 83 | . . . . . . . . . . 3 . . . . . . . . . . . . . . . 10 4 . 22 15 . 4 11 14 AOE 375 | . . 30 . 7 49 15 . 36 . . 4 . . . . . . . . . . . . . . . . . . . . 41 124 69 Terrain Rammed . | . . . . . . . . . . . . . . . . . . . . . . . . . . . . . . . . . . . Walls Destroyed . | . . . . . . . . . . . . . . . . . . . . . . . . . . . . . . . . . . . Machines Disabled . | . . . . . . . . . . . . . . . . . . . . . . . . . . . . . . . . . . . Actions | -11 -10 -10 -10 -9 -8 -7 -7 -7 -7 -7 -6 -6 -6 -6 -5 -5 -5 -5 -5 -4 -4 -4 -4 -4 -3 -3 -3 -3 -2 -2 -2 -1 -1 -1 --------- Run | Scr Mat Min Exi Min Mat Fac Low Low Zio Dee Pro Fac Low Dat Pro Fac Upp Upp War Pro Fac Upp Upp Zhi Pro Res Arm Lab Res Tes Sec Acc Com Ac0 Total 26089 | 8 729 504 473 100 577 489 666 906 1290 1620 1444 1521 40 170 1581 377 566 679 1016 440 815 676 232 185 942 1077 212 148 1020 743 631 716 3291 205 Wait 4136 | . 31 8 . 10 32 62 1 39 5 117 743 44 1 7 783 123 56 71 89 65 152 91 5 5 275 235 95 8 78 75 30 73 719 8 Move 20233 | 4 614 460 457 84 460 390 653 824 1231 1277 688 1399 39 142 765 238 498 584 879 372 603 578 227 161 667 736 88 112 813 578 549 606 2306 151 Hop 36 | . . . . . . . . . . . . 2 . . . . . . . . . . . . . 6 1 . 1 4 5 2 15 . Pick Up 219 | . 18 4 5 . 11 6 . 1 11 58 2 11 . 5 2 2 3 2 6 . 2 . . 1 . 9 . 6 11 7 4 6 22 4 Fast Attach 134 | . 2 . . . 17 . 4 . 3 27 . 9 . . 1 . . . 7 . 1 1 . 4 . 7 . 2 3 7 7 2 27 3 Attach 110 | . . 1 . . 3 2 . 1 8 16 2 7 . . . 2 . 1 2 1 2 . . 1 . 2 1 1 12 3 4 3 26 9 Detach 34 | . . . . . . . . . 1 11 . 3 . . . . . . 1 . 2 . . . . 1 . 1 2 . . 1 11 . Swap 138 | 2 7 5 3 . 3 4 1 5 2 12 5 2 . 3 5 2 1 7 2 2 3 1 . 1 . 10 5 3 18 2 6 3 13 . Drop 271 | 2 11 4 8 . 21 5 5 . 14 58 1 18 . 3 1 1 2 1 10 . 3 1 . 3 . 12 1 7 7 15 5 1 47 4 Fire 329 | . 46 22 . 6 24 14 . 26 . 41 3 . . . 1 . . . . . . . . . . 11 4 1 34 32 1 7 33 23 Melee 388 | . . . . . 6 6 2 10 15 3 . 26 . 10 19 9 6 13 4 . 29 4 . 9 . 48 3 7 41 19 20 12 67 . Ram . | . . . . . . . . . . . . . . . . . . . . . . . . . . . . . . . . . . . Kick . | . . . . . . . . . . . . . . . . . . . . . . . . . . . . . . . . . . . Crush . | . . . . . . . . . . . . . . . . . . . . . . . . . . . . . . . . . . . Escape Stasis 9 | . . . . . . . . . . . . . . . 4 . . . . . . . . . . . . . . . . . 5 . Rewire 52 | . . . . . . . . . . . . . . . . . . . 16 . 18 . . . . . 14 . . 1 . . . 3 Trap . | . . . . . . . . . . . . . . . . . . . . . . . . . . . . . . . . . . . Miscellaneous . | . . . . . . . . . . . . . . . . . . . . . . . . . . . . . . . . . . . Route ------- -11/Scrapyard -10/Materials (discovered 5 exits: [*Mat x3] / *Min x2) -10/Mines (discovered 3 exits: [*Mat x2] / *Exi) -10/Exiles -9/Mines -8/Materials (discovered 3 exits: *Fac x3) -7/Factory -7/Lower Caves -7/Lower Caves (discovered 2 exits: *Fac / *Zio) -7/Zion (discovered 2 exits: [*Dee] / *Pro) -7/Deep Caves -6/Proximity Caves -6/Factory (discovered 6 exits: *Fac x2 / *Low x2 / *Ext x2) -6/Lower Caves -6/Data Miner -5/Proximity Caves -5/Factory (discovered 6 exits: Fac x4 / *Upp x2) -5/Upper Caves -5/Upper Caves (discovered 2 exits: *Fac / *War) -5/Warlord -4/Proximity Caves -4/Factory (discovered 2 exits: *Upp x2) -4/Upper Caves -4/Upper Caves -4/Zhirov -3/Proximity Caves -3/Research (discovered 6 exits: Res x3 / *Arm / *Qua x2) -3/Armory -3/Lab -2/Research -2/Testing -2/Section 7 -1/Access (discovered 2 exits: Sur / *Com) -1/Command (discovered 3 exits: Sur x2 / [*Ac0]) -1/Access_0 History --------- Turn | Location | Event 5 | -11/Scrapyard | Discovered new exit (range 2) 12 | -11/Scrapyard | Entered Materials 236 | -10/Materials | Discovered new exit (range 16) 311 | -10/Materials | Build established: Mutant 387 | -10/Materials | Discovered new exit (range 16) 424 | -10/Materials | Discovered new exit (range 15) 826 | -10/Materials | Discovered new exit (range 9) 1071 | -10/Materials | Discovered new exit (range 12) 1240 | -10/Materials | Entered Mines 1253 | -10/Mines | Learned location of 1 exit from Materials 1333 | -10/Mines | Discovered new exit (range 9) 1378 | -10/Mines | Deemed a non-threat by the Exiles lab entrance 1490 | -10/Mines | Discovered new exit (range 3) 1540 | -10/Mines | Learned location of Zion (-7) 1545 | -10/Mines | Found the Drone Emporium 1553 | -10/Mines | Found Prototype Device 1601 | -10/Mines | Received a Rocket Launcher from a helpful Derelict 2001 | -10/Mines | Received a Mining Laser from a helpful Derelict 2123 | -10/Mines | Discovered new exit (range 5) 2135 | -10/Mines | Entered Exiles 2135 | -10/Exiles | Accompanied by 1 ally 2177 | -10/Exiles | Met 8R-AWN 2201 | -10/Exiles | Met EX-HEX 2251 | -10/Exiles | Met EX-BIN 2273 | -10/Exiles | Aligned with FarCom system 2275 | -10/Exiles | Given EX-Vault access code 2311 | -10/Exiles | Opened EX-Vault 2325 | -10/Exiles | Found Field Lobotomy Kit 2333 | -10/Exiles | Found Flying Fortress v7 2379 | -10/Exiles | Warned to stay clear of 0b10 Research branches 2426 | -10/Exiles | Met EX-DEC 2755 | -10/Exiles | Found XL Autogun Array 2776 | -10/Exiles | Build established: Hauler-Mutant 2932 | -10/Exiles | Discovered new exit (range 10) 2947 | -10/Exiles | Stole three prototypes: Flying Fortress v7, XL Autogun Array, Field Lobotomy Kit 2947 | -10/Exiles | Entered Mines 2973 | -9/Mines | Met a Derelict bent on vengeance 3103 | -9/Mines | Discovered new exit (range 15) 3127 | -9/Mines | Entered Materials 3127 | -8/Materials | Evolved 4 slots: Propulsion x2, Weapon x2 3128 | -8/Materials | Identified exit to Factory 3280 | -8/Materials | Identified Sensor Drone Bay 3406 | -8/Materials | Lost 3 parts (2n1w) 4140 | -8/Materials | Entered Factory 4140 | -7/Factory | Evolved 2 slots: Utility x2 4142 | -7/Factory | FarCom data flow suspended 4588 | -7/Factory | Discovered new exit (range 4) 4595 | -7/Factory | Identified exit to Lower Caves 4820 | -7/Factory | Fabricated Adv. Hacking Suite (x1) 4861 | -7/Factory | Entered Lower Caves 4861 | -7/Lower Caves | Accompanied by 1 ally 5425 | -7/Lower Caves | Discovered new exit (range 12) 5463 | -7/Lower Caves | Encountered a Warlord checkpoint 5857 | -7/Lower Caves | Identified exit to Lower Caves 5857 | -7/Lower Caves | Entered another Lower Caves area 5857 | -7/Lower Caves | Accompanied by 1 ally 5857 | -7/Lower Caves | Discovered new exit (range 7) 5866 | -7/Lower Caves | Identified exit to Factory 5896 | -7/Lower Caves | Encountered a Warlord checkpoint 7064 | -7/Lower Caves | Discovered new exit (range 7) 7077 | -7/Lower Caves | Identified exit to Zion 7192 | -7/Lower Caves | Learned Factory emergency access door positions 7244 | -7/Lower Caves | Entered Zion 7244 | -7/Zion | Accompanied by 1 ally 7286 | -7/Zion | Given A8's code to call for help 7337 | -7/Zion | Discovered new exit (range 15) 7374 | -7/Zion | Identified exit to Proximity Caves 7486 | -7/Zion | Received a visual enhancement algorithm 7717 | -7/Zion | Learned Factory emergency access door positions 7835 | -7/Zion | Learned location of Quarantine (-3) 7871 | -7/Zion | Learned location of Recycling (-7) 8486 | -7/Zion | Discovered new exit (range 5) 8487 | -7/Zion | Saw the warning signs outside the Deep Caves entrance 9051 | -7/Zion | Enhanced Grunt warped into view, answering call for help 9052 | -7/Zion | Enhanced Grunt warped into view, answering call for help 9055 | -7/Zion | Entered Deep Caves 9055 | -7/Deep Caves | Accompanied by 2 allies 9346 | -7/Deep Caves | Attacked by Z-Imprinter 9362 | -7/Deep Caves | Allies destroyed Z-Imprinter 9393 | -7/Deep Caves | Found Prototype Protection 9393 | -7/Deep Caves | Identified Zio. Weapon Casing 9413 | -7/Deep Caves | Found Prototype Device 9413 | -7/Deep Caves | Identified Zio. Metafield Generator 9443 | -7/Deep Caves | Found Surveybot 24 Scanner 9444 | -7/Deep Caves | Found Surveybot 24 Chip 9461 | -7/Deep Caves | Found Zio. Weapon Casing 9486 | -7/Deep Caves | Z-Facility disabled 9793 | -7/Deep Caves | Released all parts (6) 9810 | -7/Deep Caves | Core integrity fell below 50% 9820 | -7/Deep Caves | Lost 3 parts (2n1u) 9942 | -7/Deep Caves | Found Prototype Device 9942 | -7/Deep Caves | Identified Exp. Thermal Shield 10166 | -7/Deep Caves | Found Zio. Weapon Casing 10195 | -7/Deep Caves | Build established: Hauler-Gunner 10608 | -7/Deep Caves | Build established: Scavenger-Mutant 10667 | -7/Deep Caves | Discovered new exit (range 10) 10796 | -7/Deep Caves | Identified exit to Proximity Caves 10797 | -7/Deep Caves | Entered Proximity Caves 10797 | -6/Proximity Caves | Accompanied by 1 ally 11500 | -6/Proximity Caves | Spotted B-75 Beast 11509 | -6/Proximity Caves | Learned Factory emergency access door positions 11879 | -6/Proximity Caves | Discovered exit to Factory (range 13) 11898 | -6/Proximity Caves | Entered Factory 11898 | -6/Factory | Accompanied by 1 ally 11898 | -6/Factory | Evolved 2 slots: Propulsion x1, Utility x1 12034 | -6/Factory | Discovered new exit (range 13) 12080 | -6/Factory | Discovered new exit (range 5) 12095 | -6/Factory | Identified exit to Lower Caves 12095 | -6/Factory | Identified exit to Extension 12141 | -6/Factory | Discovered new exit (range 16) 12579 | -6/Factory | Repaired Adv. Reaction Control System? 12638 | -6/Factory | Entered Lower Caves 12638 | -6/Lower Caves | Accompanied by 1 ally 12638 | -6/Lower Caves | Spotted 95-NHH(f) 12639 | -6/Lower Caves | Encountered a Master Thief 12648 | -6/Lower Caves | A Derelict revealed a hidden shortcut to meet someone special 12651 | -6/Lower Caves | Identified exit to Data Miner 12651 | -6/Lower Caves | Entered Data Miner 12651 | -6/Data Miner | Accompanied by 2 allies 12651 | -6/Data Miner | Discovered new exit (range 7) 12655 | -6/Data Miner | Identified exit to Proximity Caves 12660 | -6/Data Miner | Met Data Miner 12669 | -6/Data Miner | Learned location of Section 7 (-2) 12669 | -6/Data Miner | Acquired the access code to Warlord's prototype stash 12673 | -6/Data Miner | Received God Mode back door access code from Data Miner 12715 | -6/Data Miner | Destroyed Data Miner 12718 | -6/Data Miner | Interfaced with the Data Conduit 12719 | -6/Data Miner | Found Prototype Hackware 12720 | -6/Data Miner | Found Prototype Hackware 12721 | -6/Data Miner | Found Prototype Hackware 12746 | -6/Data Miner | Entered Proximity Caves 12758 | -5/Proximity Caves | Learned Factory stockpile data 12814 | -5/Proximity Caves | Spotted B-75 Beast 13624 | -5/Proximity Caves | Assimilated B-75 Beast with FLK Orb 13863 | -5/Proximity Caves | Learned location of 1 exit from Upper Caves 13885 | -5/Proximity Caves | Discovered new exit (range 16) 13891 | -5/Proximity Caves | Identified exit to Factory 13891 | -5/Proximity Caves | Entered Factory 13891 | -5/Factory | Accompanied by 2 allies 13891 | -5/Factory | Evolved 2 slots: Utility x2 13894 | -5/Factory | Loaded intel: 250 machine locations 13987 | -5/Factory | Identified Deep Network Scanner 14086 | -5/Factory | Identified exit to Factory 14091 | -5/Factory | Identified exit to Upper Caves 14113 | -5/Factory | Identified Ghost Barrier 14113 | -5/Factory | Identified Quantum Router 14141 | -5/Factory | Entered Upper Caves 14141 | -5/Upper Caves | Accompanied by 1 ally 14141 | -5/Upper Caves | Spotted J2-SVA(f) 14142 | -5/Upper Caves | Encountered a Master Thief 14142 | -5/Upper Caves | Identified exit to Upper Caves 14142 | -5/Upper Caves | Field Lobotomy Kit stolen by Master Thief 14146 | -5/Upper Caves | Destroyed J2-SVA(f) 14345 | -5/Upper Caves | Encountered a Warlord checkpoint 14401 | -5/Upper Caves | Entered another Upper Caves area 14401 | -5/Upper Caves | Accompanied by 1 ally 14401 | -5/Upper Caves | Spotted PH-O9Z(f) 14402 | -5/Upper Caves | Encountered a Master Thief 14421 | -5/Upper Caves | Field Lobotomy Kit stolen by Master Thief 14441 | -5/Upper Caves | Destroyed PH-O9Z(f) 14449 | -5/Upper Caves | Discovered exit to Factory (range 10) 14741 | -5/Upper Caves | Discovered new exit (range 8) 14748 | -5/Upper Caves | Identified exit to Warlord 14753 | -5/Upper Caves | Entered Warlord 14915 | -5/Warlord | Visited the Vortex Lab 14918 | -5/Warlord | Found Prototype Energy Gun 14918 | -5/Warlord | Identified Vortex Rifle 14922 | -5/Warlord | Found Vortex Rifle 14936 | -5/Warlord | Warlord's base attacked by MAIN.C 15002 | -5/Warlord | Build established: Hacker-Mutant 15010 | -5/Warlord | Met Warlord 15014 | -5/Warlord | Opened Warlord's prototype stash 15024 | -5/Warlord | Found Prototype Hackware 15027 | -5/Warlord | Found Exp. Phase Shifter 15113 | -5/Warlord | Opened side exit 15233 | -5/Warlord | Discovered new exit (range 10) 15236 | -5/Warlord | Spotted Striker 15236 | -5/Warlord | Spotted Striker 15236 | -5/Warlord | Spotted Executioner 15236 | -5/Warlord | Entered Proximity Caves 15413 | -4/Proximity Caves | Spotted B-86 Titan 15462 | -4/Proximity Caves | Discovered exit to Factory (range 8) 15476 | -4/Proximity Caves | Entered Factory 15476 | -4/Factory | Accompanied by 1 ally 15476 | -4/Factory | Evolved 2 slots: Power x1, Utility x1 15478 | -4/Factory | Loaded intel: 252 machine locations 15559 | -4/Factory | Identified exit to Upper Caves 15588 | -4/Factory | Spotted B-86 Titan 15964 | -4/Factory | Entered Upper Caves 16198 | -4/Upper Caves | Spotted B-86 Titan 16314 | -4/Upper Caves | Discovered new exit (range 14) 16323 | -4/Upper Caves | Identified exit to Upper Caves 16323 | -4/Upper Caves | Entered another Upper Caves area 16323 | -4/Upper Caves | Accompanied by 1 ally 16327 | -4/Upper Caves | Learned 4 Research zone layouts 16369 | -4/Upper Caves | Encountered a Warlord checkpoint 16398 | -4/Upper Caves | Spotted YI-RV7(f) 16402 | -4/Upper Caves | Encountered a Master Thief 16402 | -4/Upper Caves | Spotted TO-DOL(f) 16403 | -4/Upper Caves | Encountered a Master Thief 16403 | -4/Upper Caves | Spotted WS-NOO(f) 16404 | -4/Upper Caves | Encountered a Master Thief 16404 | -4/Upper Caves | Spotted U1-O8N(f) 16404 | -4/Upper Caves | Spotted ZN-EFM(f) 16405 | -4/Upper Caves | Encountered a Master Thief 16405 | -4/Upper Caves | Encountered a Master Thief 16411 | -4/Upper Caves | Discovered new exit (range 11) 16413 | -4/Upper Caves | Entered Zhirov 16413 | -4/Zhirov | Discovered new exit (range 3) 16415 | -4/Zhirov | Identified exit to Proximity Caves 16426 | -4/Zhirov | Met Zhirov 16444 | -4/Zhirov | Zhirov requested help retrieving the SGEMP Prototype 16451 | -4/Zhirov | Found Alien Artifact 16451 | -4/Zhirov | Identified Integrated Reactor 16451 | -4/Zhirov | Installed Integrated Reactor, increased core energy generation (+10) 16496 | -4/Zhirov | Found Alien Artifact 16514 | -4/Zhirov | Entered Proximity Caves 16514 | -3/Proximity Caves | Accompanied by 1 ally 16647 | -3/Proximity Caves | Discovered new exit (range 9) 16653 | -3/Proximity Caves | Identified exit to Research 16819 | -3/Proximity Caves | Received a Behemoth hack from an annoying Tinkerer 17030 | -3/Proximity Caves | Entered Research 17030 | -3/Research | Accompanied by 1 ally 17030 | -3/Research | Evolved 2 slots: Propulsion x1, Utility x1 17031 | -3/Research | Identified exit to Quarantine 17032 | -3/Research | Loaded intel: 110 machine locations 17150 | -3/Research | Identified exit to Research 17163 | -3/Research | Identified Transdimensional Reconstructor 17163 | -3/Research | Identified System Mapper 17195 | -3/Research | Found Antimissile System 17329 | -3/Research | Discovered exit to Quarantine (range 13) 17377 | -3/Research | Spotted B-86 Titan 17382 | -3/Research | Found Enh. Force Lance 17405 | -3/Research | Identified exit to Armory 17428 | -3/Research | Spotted B-86 Titan 17436 | -3/Research | Befriended a Behemoth using the annoying Tinkerer's hack 17478 | -3/Research | Intercept squad dispatched 17719 | -3/Research | Entered Armory 17720 | -3/Armory | Loaded intel: 80 machine locations 17769 | -3/Armory | Fabricated Lrg. Storage Unit (x1) 17875 | -3/Armory | Warped through subspace to slip node 17875 | -3/Armory | Discovered new exit (range 1) 17885 | -3/Armory | Entered Lab 17885 | -3/Lab | Discovered exit to Research (range 9) 17889 | -3/Lab | Hidden lab's door opened automatically 17889 | -3/Lab | Sensor layout match revealed 17890 | -3/Lab | Gained access to the hidden lab's interior 17890 | -3/Lab | Decrypted terminal 17890 | -3/Lab | Opened the door to a hidden lab 17894 | -3/Lab | Decrypted terminal 17895 | -3/Lab | Detected by scanners 17904 | -3/Lab | Confronted by A5 17905 | -3/Lab | Destroyed A5 with decrypted code from the hidden lab 17908 | -3/Lab | Disabled Active System Cloaker 17913 | -3/Lab | Decrypted terminal 17913 | -3/Lab | Acquired modification code for an L2 power cell 17913 | -3/Lab | Decrypted terminal 17918 | -3/Lab | Found Prototype Energy Gun 17918 | -3/Lab | Identified Tachyon Dispersion Ray 17921 | -3/Lab | Found Prototype Energy Gun 17921 | -3/Lab | Identified Hyp. EM Gauss Rifle 17924 | -3/Lab | Found Prototype Device 17926 | -3/Lab | Found Deep Network Scanner 17934 | -3/Lab | Found Alien Artifact 17941 | -3/Lab | MAIN.C forces arrive to investigate 17941 | -3/Lab | Found Alien Artifact 17948 | -3/Lab | Found Transdimensional Reconstructor 17957 | -3/Lab | Found Alien Artifact 17962 | -3/Lab | Entered Research 17962 | -2/Research | Warlord forces began assault on 0b10 17962 | -2/Research | Evolved 2 slots: Propulsion x1, Utility x1 17962 | -2/Research | Identified AEGIS Remote Shield 17963 | -2/Research | Loaded intel: 102 machine locations 17986 | -2/Research | Identified Core Expander 18011 | -2/Research | Identified Integrated Dissipator 18011 | -2/Research | Identified Core Reset Matrix 18011 | -2/Research | Installed Integrated Dissipator, increased core heat dissipation (+20) 18072 | -2/Research | Research machine network offline 18196 | -2/Research | Build established: Hacker-Sprinter 18311 | -2/Research | Installed Core Expander, added new Utility slot 18328 | -2/Research | Spotted Tracker 18328 | -2/Research | Spotted Tracker 18333 | -2/Research | Borebot progress halted 18339 | -2/Research | Destroyed Tracker 18353 | -2/Research | Destroyed Tracker 18360 | -2/Research | Found Exp. Phase Shifter 18372 | -2/Research | Spotted Combat Programmer 18373 | -2/Research | Assimilated Combat Programmer with FLK Orb 18398 | -2/Research | Spotted Combat Programmer 18403 | -2/Research | Assimilated Combat Programmer with FLK Orb 18411 | -2/Research | Spotted Striker 18417 | -2/Research | Allies destroyed Striker 18426 | -2/Research | Combat Programmer assimilated hostile S-43 Plague 18469 | -2/Research | Discovered new exit (range 14) 18488 | -2/Research | Combat Programmer assimilated hostile Y-72 Warden 18504 | -2/Research | Borebot progress halted 18507 | -2/Research | Identified exit to Testing 18512 | -2/Research | Entered Testing 18512 | -2/Testing | Accompanied by 5 allies 18513 | -2/Testing | Loaded intel: 91 machine locations 18542 | -2/Testing | Combat Programmer assimilated hostile L-61 Swordsman 18555 | -2/Testing | Spotted PX-ECX53SZRBP 18558 | -2/Testing | Rewired PX-ECX53SZRBP 18577 | -2/Testing | Found Prototype Protection 18577 | -2/Testing | Identified Med. Regenerative Plating 18579 | -2/Testing | Found Med. Regenerative Plating 18595 | -2/Testing | Found Prototype Ballistic Cannon 18595 | -2/Testing | Identified Omega Cannon 18675 | -2/Testing | Spotted Striker 18709 | -2/Testing | Spotted Striker 18714 | -2/Testing | Spotted Alpha 7 18714 | -2/Testing | Allies destroyed Striker 18724 | -2/Testing | Destroyed Striker 18749 | -2/Testing | Scanned by Researcher 18761 | -2/Testing | Destroyed Alpha 7 18762 | -2/Testing | First assault squad dispatched 18766 | -2/Testing | Stole the SGEMP Prototype 18819 | -2/Testing | Found Prototype Energy Cannon 18819 | -2/Testing | Identified Null Cannon 18845 | -2/Testing | Assimilated B-74 Champion with FLK Orb 18848 | -2/Testing | Assimilated G-73 Enforcer with FLK Orb 18857 | -2/Testing | Found Prototype Energy Cannon 18857 | -2/Testing | Identified Imp. Potential Cannon 18860 | -2/Testing | Found Imp. Potential Cannon 18887 | -2/Testing | Spotted Fortress 18909 | -2/Testing | Discovered new exit (range 6) 18914 | -2/Testing | Identified exit to Section 7 18916 | -2/Testing | Entered Section 7 18916 | -2/Section 7 | Accompanied by 1 ally 18917 | -2/Section 7 | Loaded intel: 145 machine locations 18975 | -2/Section 7 | Spotted S7 Guard 18979 | -2/Section 7 | Found Alien Artifact 18981 | -2/Section 7 | Identified Core Membrane 18981 | -2/Section 7 | Installed Core Membrane, gained immunity to corruption 19023 | -2/Section 7 | Spotted S7 Guard 19046 | -2/Section 7 | Modified the L2 Power Cell with code from the hidden lab 19051 | -2/Section 7 | Spotted B-99 Colossus 19064 | -2/Section 7 | Found Core Expander 19064 | -2/Section 7 | Installed Core Expander, added new Power slot 19066 | -2/Section 7 | Found Core Expander 19066 | -2/Section 7 | Installed Core Expander, added new Power slot 19067 | -2/Section 7 | Intercept squad dispatched 19068 | -2/Section 7 | Found Core Expander 19081 | -2/Section 7 | Found Alien Artifact 19084 | -2/Section 7 | Found Alien Artifact 19086 | -2/Section 7 | Identified LRC Boosters (x2) 19086 | -2/Section 7 | Installed LRC Boosters, increased mass support (+10) 19087 | -2/Section 7 | Installed LRC Boosters, increased mass support (+10) 19088 | -2/Section 7 | Spotted Tracker 19090 | -2/Section 7 | Found Alien Artifact 19090 | -2/Section 7 | Spotted Tracker 19094 | -2/Section 7 | Destroyed Tracker 19115 | -2/Section 7 | Destroyed Tracker 19136 | -2/Section 7 | Found Exp. Phase Shifter 19166 | -2/Section 7 | First assault squad dispatched 19169 | -2/Section 7 | Befriended a Behemoth using the annoying Tinkerer's hack 19173 | -2/Section 7 | Spotted Combat Programmer 19174 | -2/Section 7 | Spotted Alpha 7 19178 | -2/Section 7 | Spotted Alpha 7 19202 | -2/Section 7 | Identified exit to Access 19214 | -2/Section 7 | Entered Access 19215 | -1/Access | Loaded intel: 124 machine locations 19215 | -1/Access | Loaded intel: 67 trap records 19215 | -1/Access | Identified exit to Surface 19215 | -1/Access | Discovered exit to Surface (range 147) 19215 | -1/Access | Identified exit to Command 19215 | -1/Access | Discovered exit to Command (range 247) 19215 | -1/Access | Loaded intel: 124 machine locations 19215 | -1/Access | Delivered the SGEMP Prototype to Zhirov 19215 | -1/Access | Zhirov transferred Access data 19235 | -1/Access | Identified LRC Storage 19235 | -1/Access | Installed LRC Storage, increased inventory capacity (+2) 19386 | -1/Access | Garrison activated, responded to threat 19416 | -1/Access | Zhirov warped through subspace 19498 | -1/Access | First assault squad dispatched 19518 | -1/Access | Build established: Wizard-Sprinter 19528 | -1/Access | Intercept squad dispatched 19534 | -1/Access | Entered Command 19534 | -1/Command | Accompanied by 1 ally 19535 | -1/Command | Loaded intel: 49 machine locations 19552 | -1/Command | Disengaged cave seal 19552 | -1/Command | Derelicts emerged from the dark tunnel 19553 | -1/Command | Welcomed Warlord to Command 19591 | -1/Command | Found Quantum Capacitor 19646 | -1/Command | Found Enh. Force Lance 19769 | -1/Command | Disengaged cave seal 19769 | -1/Command | Derelicts emerged from the dark tunnel 19824 | -1/Command | Spotted B-99 Colossus 20107 | -1/Command | Spotted FN-4QI(L) 20456 | -1/Command | Repaired Mic. Fission Core 20803 | -1/Command | Spotted Combat Programmer 20804 | -1/Command | Destroyed Combat Programmer 20804 | -1/Command | Spotted Combat Programmer 20806 | -1/Command | Destroyed Combat Programmer 20813 | -1/Command | Found Enh. Force Lance 20815 | -1/Command | Found Enh. Force Lance 20817 | -1/Command | Found Enh. Force Lance 20835 | -1/Command | Spotted M Guard 20835 | -1/Command | Spotted M Guard 20868 | -1/Command | Destroyed M Guard 20890 | -1/Command | Destroyed M Guard 20890 | -1/Command | All MAIN.C guards destroyed 21030 | -1/Command | Met MAIN.C 21030 | -1/Command | 0b10 Conduit disabled 21067 | -1/Command | Destroyed MAIN.C Shell 21068 | -1/Command | MAIN.C activated Command garrisons 21079 | -1/Command | Zhirov used SGEMP to disable MAIN.C 21141 | -1/Command | Found Vortex Chain Reactor 21149 | -1/Command | Found Exp. Phase Shifter 21155 | -1/Command | Found Spectral Analyzer 21480 | -1/Command | Warped through subspace to slip node 21480 | -1/Command | Discovered new exit (range 4) 21503 | -1/Command | Build established: Generator-Mutant 21593 | -1/Command | Entered Access_0 21594 | -1/Access_0 | Loaded intel: 54 machine locations 21594 | -1/Access_0 | Met Architect 21602 | -1/Access_0 | Architect warped through subspace 21654 | -1/Access_0 | Architect warped through subspace 21685 | -1/Access_0 | Destroyed A8 21714 | -1/Access_0 | Spotted Enhanced Programmer 21819 | -1/Access_0 | Lost 12 parts (1p1n7u3w) 21824 | -1/Access_0 | Spotted Enhanced Programmer 21828 | -1/Access_0 | Core integrity fell below 50% 21846 | -1/Access_0 | Core integrity fell below 20% 21854 | -1/Access_0 | Destroyed by Enhanced Hunter with Hypervelocity Linear Accelerator Last Messages --------------- 21841_ Exp. Phase Shifter destroyed. 21841_ Adv. Heat Sink destroyed. 21842_ Dropped Lrg. Storage Unit. 21843_ Penetrated by HV Slug. 21843_ HV Slug penetrates Wall. 21843_ Penetrated by HV Slug. 21843_ HV Slug penetrates Wall. 21843_ Penetrated by HV Slug. 21843_ Critical hit. 21843_ Mic. Fission Core destroyed. 21843_ HV Slug penetrates Wall. 21845_ Penetrated by Quantum Shear. 21845_ Mic. Fission Core destroyed. 21845_ HV Slug penetrates Wall. 21853_ Penetrated by HV Slug. 21853_ Knocked back. 21853_ Quantum Shear penetrates Enhanced Programmer. 21854_ Penetrated by HV Slug. 21854_ Knocked back. 21854_ Penetrated by HV Slug. Map ----- +----------------------------------------------------+ | ??????????????????????????"""""??????????????????? | | ?????????????????????????????????????????????????? | | ?????????????????????????????????????????????????? | | ?????????????????????????????????????????????????? | | ?????????????????????????????????????????????????? | | ?????????????????????????????????????????????????" | | ?????????????????????????????????????????????????? | | ???????? ????????????????????????????????????????? | | ??????? ???????????????????????????????????????" | | ??????? ??????????????????????????????????????? | | ?????? ?????????????????????????????????????? | | ?????? ????????????????????????????????????? | | ????? #???????????????????????????????????? | | ????? ##?????????????????????????????????? | | ?????? #????????????????????????????????? | | ???????? #?#?????????????????????????????? | | ????????? ## ????????????????????????????? | | ??????????? ?????????????????????????###? | | ????????????? ????????#####???????????# ## | | ??????????????? hh ???????## ;#??????????## # | | ????????????????# ???#### ##??????????# # | | ????????????????# ???# ##?????????# " | | ?????????????????# ??# p0 #####?###### | | ??????????????????# ### ### #?# """ | | ??????????????????????# ##?# ## ### "" | | ??????????????????????# @ ##??# ### #" | | ??????????????????????# g #???##### "" ! | | ??????????????????????# g ???? " | | ?????????????????????# #?##" | | ?????????????????????# ;#""""" "###" | | ?????????????????????# g ""###"###?## | | ?????????????????????# ##??##????? | | ????????????????????? ####### ?????????? | | ???????????????????? #?????# ##???"??"?? | | ??????????????????? #?????# #?????""??? | | ??????????????????# ##???? #?????""??? | | ?????????????????? #???? ## #???"??"?? | | ????????????????? #??? #?# #????????? | | ???????????????? #### #? #??# #????????? | | ???????????????? #???# #### ???# #????????? | | ??????????????? #????# #???# ??? #?????????? | | ??????????????? ?????##???? #???? #??????????? | | ??????????????? ???????????# ????? #???????????? | | ?????????????? ??????????? ??????#????????????? | | ?????????????? ??????????? ???????????????????? | | ????????????????????????? ????????????????????? | | ???????????????????????????#?????????????????????? | | ?????????????????????????????????????????????????? | | ?????????????????????????????????????????????????? | | ?????????????????????????????????????????????????? | +----------------------------------------------------+ Best States ------------- Heat Dissipation 129 Energy Generation 91 Energy Capacity 1840 Matter Stores 300 Matter Capacity 300 Sight Range 24 Terrain Scan Range 24 Terrain Scan Density 2010 Additional Mass Support 25 Armor Coverage 675 Propulsion Shielding 66 Utility Shielding 66 Weapon Shielding 100 Point Defense Rating 80 Melee Speed Boost 30 Phase Shifting 20 Evasion (%) 98 Targeting Accuracy 6 Melee Accuracy 8 Recoil Reduction 3 Energy Filtering 50 Particle Charging 25 Salvage Targeting 2 Offensive Hacking 50 Defensive Hacking 45 Item Schematics ----------------- Lrg. Storage Unit | -8/Materials | Scanalyzed Hacking Suite | -8/Materials | Hacked Hcp. Storage Unit | -8/Materials | Hacked System Shield | -8/Materials | Hacked Imp. Flight Unit | -7/Factory | Scanalyzed Hrd. Light Armor Plating | -7/Factory | Scanalyzed Imp. Gravmag System | -6/Factory | Hacked Adv. Hacking Suite | -6/Factory | Scanalyzed Exp. Terrain Scanner | -6/Data Miner | Free Exp. Targeting Computer | -6/Data Miner | Free Tactical Coordination Suite | -6/Data Miner | Free Combat Drone Bay | -6/Data Miner | Free Lgt. Regenerative Plating | -6/Data Miner | Free Adv. Reaction Control System | -4/Factory | Hacked Assault Drone Bay | -4/Zhirov | Free Exp. Heat Sink | -4/Zhirov | Free Exp. Optical Array | -4/Zhirov | Free Imp. Arc Thrower | -4/Zhirov | Free Exp. Phase Shifter | -3/Research | Scanalyzed Robot Schematics ------------------ S-27 Virus | -6/Data Miner | Free G-50 Soldier | -6/Data Miner | Free G-67 Veteran | -6/Data Miner | Free L-41 Fighter | -6/Data Miner | Free I-36 Angel | -6/Data Miner | Free Fabricated ------------ Adv. Hacking Suite | x1 | -7/Factory | Preloaded Lrg. Storage Unit | x1 | -3/Armory Alien Tech Used ----------------- Integrated Reactor Transdimensional Reconstructor Integrated Dissipator Core Expander Core Membrane LRC Boosters LRC Storage Achievements -------------- Ambidextrous Behind The Curtain Big Bang Can't Touch This Decrypted! Hard Hitter More Power To You Sorry Old Pal Unlimited Data Woof! Challenges ------------ None Game ------ Seed SwordLaserFacilitator Manual? 0 Play Time 14:10:33 Cumulative 158.2 hours Start 2021.11.29 @ 13:55:59 End 2021.12.02 @ 15:06:52 Sessions 17 Manual Loads 0 Difficulty Rogue Special Mode None Game No. 30 Rogue 30 Adventurer 0 Explorer 0 Win Type - Total 6 Types 4/2/0/0/0/0/0/0/0 Lore% 74 Gallery% 70 Achievement% 61 Wizard Run 0 Options --------- ASCII 0 Keyboard 0 Movement Vi Keybinds 0 Fullscreen 1 Font 36/Smallcaps Map View 76x50 Tactical HUD 1 Map Filters NONE Filters NONE Steam 1 RUN: 8a3a0158-e9cb-425d-bf60-34c286f55450